Cogmind - Beta 16 @@@ ROGUE MODE // 2026.01.17 @ 13:19:13 Player: chebyrekser Result: Destroyed by G-73 Enforcer with Heavy Laser Performance ------------- Evolutions (9) 4500 Regions Visited (38) 7600 Robots Destroyed (349) 1745 Value Destroyed (15642) 15642 Prototype IDs (34) 680 Alien Tech Used (1) 200 Bonus (17202) 17202 TOTAL SCORE: 47569 Bonus ------- High Alert Combat Kills 2037 Follower Combat Kills 2147 Entered Garrisons 2200 Used RIF Installer 4000 Aligned with FarCom 300 MAIN.C Attacked Warlord 500 Warlord Defense Kills 1214 Met MAIN.C 5000 Friendly Fire -196 Cogmind --------- Core Integrity 0/1600 Matter 238/300 Energy 92/100 System Corruption 18% Temperature Cool (9) Movement Core (50) Location -1/Command Parts ------- > --- POWER (2) -------- (None) > --- PROPULSION (4) --- (None) > --- UTILITY (18) ----- Hacking Suite Improved Hacking Suite Advanced Hacking Suite System Shield System Shield Relay Coupler [C] (37) Relay Coupler [C] (8) Relay Coupler [Proto] (4) > --- WEAPON (2) ------- (None) > --- INVENTORY (5) ---- Relay Coupler [C] (32) Enhanced Nova Cannon Peak State ------------ > --- POWER ------------ Light Ion Engine > --- PROPULSION ------- Field Propulsion Array Q-thruster Improved Q-thruster > --- UTILITY ---------- Modified TNC Advanced Reaction Control System Heavy Armor Plating Hacking Suite Hacking Suite Improved Hacking Suite Advanced Hacking Suite Advanced Hacking Suite System Shield System Shield Relay Coupler [NC] Relay Coupler [C] Relay Coupler [C] Relay Coupler [Sentry] Relay Coupler [Sentry] Relay Coupler [Heavy] Relay Coupler [Behemoth] > --- WEAPON ----------- Improved Remote Datajack CR-A16's Pointy Stick > --- INVENTORY -------- Relay Coupler [C] Relay Coupler [Proto] Relay Coupler [Proto] Relay Coupler [Proto] Enhanced Nova Cannon [Rating: 132] Favorites ----------- Power Backup Power III Engine Backup Power III Power Core Backup Power VII Propulsion Light Treads Treads Light Treads Leg Aluminum Leg Wheel Compact Wheel Flight Unit Improved VTOL Module Utility Hardened Light Armor Plating Device Improved Heat Sink Storage Huge Storage Unit Processor Modified TNC Hackware Relay Coupler [NC] Protection Hardened Light Armor Plating Weapon Enhanced Autogun Energy Gun Particle Gun Energy Cannon Beam Cannon Ballistic Gun Enhanced Autogun Ballistic Cannon Gauss Cannon Launcher Grenade Launcher Special Weapon Improved Remote Datajack Slashing Weapon Great Axe Piercing Weapon Plasma Lance Build | -11 -10 -10 -10 -9 -8 -8 -8 -8 -7 -7 -7 -7 -7 -7 -7 -7 -6 -6 -6 -5 -5 -5 -5 -4 -4 -4 -4 -4 -4 -3 -3 -3 -3 -3 -2 -2 -1 -1 ------- Run | Yrd Mat Min Exi Min Mat Gar Mat Gar Fac Gar Fac Gar Fac Low Low Zio Pro Fac Gar Fac Gar Fac Gar Fac Gar Fac Upp Upp War Pro Res Gar Res Gar Res Gar Acc Com Slots Evolved 18 | . . . . . 4 . . . 2 . . . . . . . . 2 . 2 . . . 2 . . . . . . 2 . . . 2 . 2 . Power . | . . . . . . . . . . . . . . . . . . . . . . . . . . . . . . . . . . . . . . . Propulsion 2 | . . . . . 2 . . . . . . . . . . . . . . . . . . . . . . . . . . . . . . . . . Utility 16 | . . . . . 2 . . . 2 . . . . . . . . 2 . 2 . . . 2 . . . . . . 2 . . . 2 . 2 . Weapon . | . . . . . . . . . . . . . . . . . . . . . . . . . . . . . . . . . . . . . . . Parts Attached 228 | 9 8 3 1 6 25 15 19 15 11 6 3 11 1 4 1 1 . 2 12 4 15 6 9 4 6 2 . . . . 5 2 3 1 2 8 4 4 Power 23 | 1 2 . . . 3 3 2 . . 1 1 1 . . 1 . . 2 2 . 2 . 1 . . . . . . . . . . . 1 . . . Engine 15 | 1 2 . . . 3 3 2 . . . 1 . . . 1 . . 1 . . . . . . . . . . . . . . . . 1 . . . Core 8 | . . . . . . . . . . 1 . 1 . . . . . 1 2 . 2 . 1 . . . . . . . . . . . . . . . Reactor . | . . . . . . . . . . . . . . . . . . . . . . . . . . . . . . . . . . . . . . . Propulsion 52 | 3 2 . . 1 10 7 8 10 3 . . . . 1 . . . . . . 2 1 . 1 . . . . . . . 1 1 . 1 . . . Treads 36 | 2 . . . 1 9 7 8 9 . . . . . . . . . . . . . . . . . . . . . . . . . . . . . . Leg 1 | . 1 . . . . . . . . . . . . . . . . . . . . . . . . . . . . . . . . . . . . . Wheel 2 | 1 1 . . . . . . . . . . . . . . . . . . . . . . . . . . . . . . . . . . . . . Hover . | . . . . . . . . . . . . . . . . . . . . . . . . . . . . . . . . . . . . . . . Flight 13 | . . . . . 1 . . 1 3 . . . . 1 . . . . . . 2 1 . 1 . . . . . . . 1 1 . 1 . . . Utility 115 | 2 1 1 1 1 9 4 5 3 8 5 2 8 1 1 . 1 . . 8 4 8 4 6 2 6 2 . . . . 4 1 2 . . 8 4 3 Device 19 | 1 . . 1 1 2 1 2 1 2 . . . . 1 . . . . . 2 . 1 . 1 2 1 . . . . . . . . . . . . Storage 2 | 1 1 . . . . . . . . . . . . . . . . . . . . . . . . . . . . . . . . . . . . . Processor 5 | . . . . . . . . . 2 . . . . . . . . . . . . 1 . . . . . . . . 1 . . . . . 1 . Hackware 62 | . . . . . . . 2 2 2 4 1 7 . . . 1 . . 7 . 7 1 5 1 4 . . . . . 2 1 2 . . 7 3 3 Protection 27 | . . 1 . . 7 3 1 . 2 1 1 1 1 . . . . . 1 2 1 1 1 . . 1 . . . . 1 . . . . 1 . . Artifact . | . . . . . . . . . . . . . . . . . . . . . . . . . . . . . . . . . . . . . . . Weapon 38 | 3 3 2 . 4 3 1 4 2 . . . 2 . 2 . . . . 2 . 3 1 2 1 . . . . . . 1 . . 1 . . . 1 Energy Gun 4 | 2 2 . . . . . . . . . . . . . . . . . . . . . . . . . . . . . . . . . . . . . Energy Cannon 4 | . . . . 2 . . . 1 . . . . . . . . . . . . . . . . . . . . . . . . . . . . . 1 Ballistic Gun 10 | 1 . . . 1 3 . 2 1 . . . . . . . . . . . . 1 . 1 . . . . . . . . . . . . . . . Ballistic Cannon 1 | . . . . . . . . . . . . . . 1 . . . . . . . . . . . . . . . . . . . . . . . . Launcher 7 | . . 2 . 1 . 1 . . . . . . . . . . . . 1 . . . 1 . . . . . . . . . . 1 . . . . Special Weapon 8 | . 1 . . . . . 1 . . . . 1 . 1 . . . . 1 . . 1 . 1 . . . . . . 1 . . . . . . . Impact Weapon . | . . . . . . . . . . . . . . . . . . . . . . . . . . . . . . . . . . . . . . . Slashing Weapon 2 | . . . . . . . 1 . . . . 1 . . . . . . . . . . . . . . . . . . . . . . . . . . Piercing Weapon 2 | . . . . . . . . . . . . . . . . . . . . . 2 . . . . . . . . . . . . . . . . . Special Melee Weapon . | . . . . . . . . . . . . . . . . . . . . . . . . . . . . . . . . . . . . . . . Unidentified Prototypes 10 | . . . 1 . 3 . 1 . . . . . . 2 . . . . . . 1 . . . . . . . . . 1 . . . 1 . . . Parts Lost 42 | . 2 . . 2 . 2 3 . . 1 . . . . . . . . 2 . 10 . 1 . . . . . . . . 2 . 3 1 . . 13 Power 8 | . 1 . . . . 1 . . . . . . . . . . . . 1 . 2 . . . . . . . . . . . . 2 . . . 1 Propulsion 7 | . 1 . . 1 . . . . . . . . . . . . . . . . 2 . . . . . . . . . . 1 . . . . . 2 Utility 18 | . . . . 1 . . 2 . . 1 . . . . . . . . 1 . 3 . 1 . . . . . . . . . . . 1 . . 8 Weapon 9 | . . . . . . 1 1 . . . . . . . . . . . . . 3 . . . . . . . . . . 1 . 1 . . . 2 Highest Loss Streak 13 | . 2 . . 2 . 1 2 . . 1 . . . . . . . . 2 . 9 . 1 . . . . . . . . 1 . 3 1 . . 13 To Critical Strikes . | . . . . . . . . . . . . . . . . . . . . . . . . . . . . . . . . . . . . . . . Average Backups 14 | 5 15 24 24 24 24 24 24 24 7 4 5 4 5 4 5 5 5 5 4 5 4 4 3 4 2 4 4 4 4 4 3 4 3 3 4 5 5 4 Power 1 | . 1 2 3 5 4 2 1 2 . . . . . . . . . . . . . . . . . . . . . . . . . . . . . . Propulsion 3 | 3 4 7 6 5 5 6 8 7 1 1 1 1 1 . . . . . . . . . . . . . . . . . . . . . . . . . Utility 4 | . 3 5 6 5 6 9 8 9 4 2 3 1 2 2 3 2 2 2 2 3 3 1 1 2 . 2 2 2 2 2 1 1 1 . 1 3 4 3 Weapon 4 | . 6 10 8 7 8 6 5 4 1 1 1 1 . 1 1 1 2 2 1 2 1 1 2 2 2 2 2 2 2 2 2 1 1 2 1 1 1 1 Tool/Special . | . . . . . . . . . . . . . . . . . . . . . . . . . . . . . . . . . . . . . . . Unused Backups 44 | . 2 . 2 . 13 4 1 . 7 2 . 2 . . . . . . . . . 3 . . . . . . . . . . . . . 7 . 1 Power 7 | . . . . . 3 2 1 . 1 . . . . . . . . . . . . . . . . . . . . . . . . . . . . . Propulsion 9 | . 1 . 1 . 2 1 . . 3 . . . . . . . . . . . . . . . . . . . . . . . . . . 1 . . Utility 16 | . . . . . 2 1 . . 2 2 . 1 . . . . . . . . . 3 . . . . . . . . . . . . . 4 . 1 Weapon 11 | . 1 . 1 . 6 . . . 1 . . 1 . . . . . . . . . . . . . . . . . . . . . . . 1 . . Tool/Special 1 | . . . . . . . . . . . . . . . . . . . . . . . . . . . . . . . . . . . . 1 . . Average Slot Usage (%) 94 | . 97 100 92 86 98 99 99 98 95 97 99 98 100 98 92 92 92 81 89 97 91 91 86 90 94 94 95 92 89 89 91 85 89 87 74 86 84 71 Engine 6 | . 13 14 14 14 9 8 9 9 7 1 . . . . . . . . . 11 6 . . 4 5 5 5 5 5 5 4 4 4 3 1 4 3 2 Core 2 | . . . . . . . . . . 2 7 7 7 7 7 7 7 6 4 . 1 5 4 5 5 5 5 5 5 5 4 3 1 3 . . . . Treads 14 | . 16 14 14 13 30 36 35 35 1 . . . . . . . . . . . . . . . . . . . . . . . . . . . . . Wheel 2 | . 10 14 14 14 5 . . . . . . . . . . . . . . . . . . . . . . . . . . . . . . . . . Flight 9 | . . . . . . . . . 27 30 30 30 30 29 28 28 28 25 25 22 20 22 22 15 15 15 15 15 15 15 13 12 13 13 12 12 11 8 Device 6 | . 12 12 6 1 8 9 9 9 7 1 . . . 7 6 7 6 . . 4 1 1 . 2 5 4 5 5 5 5 4 4 3 4 4 4 3 2 Storage 5 | . 14 14 14 14 9 9 9 9 1 . . . . . . . . . . . . . . . . . . . . . . . . . . . . . Processor 6 | . . . . . . . . . 11 15 15 15 15 14 14 14 14 12 12 11 11 11 16 15 15 15 15 15 15 15 14 18 18 18 16 12 5 2 Hackware 13 | . . . . . . . 1 5 11 16 15 14 15 14 14 14 14 12 24 27 32 33 28 33 35 33 30 27 25 25 30 28 29 27 25 36 46 44 Protection 9 | . . 1 . . 17 18 16 11 8 11 14 13 15 6 7 7 7 11 8 9 6 5 6 5 5 5 10 10 10 10 9 5 9 9 6 7 5 2 Energy Cannon 2 | . . . . 14 13 . . . . . . . . . . . . . . . . . . . . . . . . . . . . . . . . . Ballistic Gun 4 | . 12 . . 1 2 13 16 13 . . . . . . . . . . . . . . . . . . . . . . . . . . . . . . Launcher 2 | . . 26 28 11 . 3 . 2 . . . 1 . . . . . . . . . . . . . . . . . . . 1 . 1 . . . . Special Weapon 2 | . 3 . . . 1 1 . . 6 7 7 6 6 7 7 7 7 6 5 5 2 4 1 5 4 5 5 5 4 4 4 2 2 2 3 4 3 2 Slashing Weapon 1 | . . . . . . . . 2 7 6 7 6 7 6 7 7 7 6 5 5 1 . . . . . . . . . . . . . . . . . Piercing Weapon 1 | . . . . . . . . . . . . . . . . . . . . . 5 5 3 5 4 5 5 5 4 4 4 2 4 2 3 4 3 2 Peak Build Rating 132 | 7 10 10 18 11 28 29 30 35 48 48 51 54 50 55 59 55 55 59 65 69 74 80 80 93 100 103 100 100 102 95 116 106 110 111 93 120 132 126 Average Rating 48 | 5 8 9 10 10 22 27 28 32 45 46 49 50 49 53 54 54 54 51 57 64 62 72 71 87 95 99 99 97 94 94 103 98 100 102 90 111 124 105 On Entrance 61 | . 7 9 10 10 11 28 28 30 30 47 47 51 48 50 50 55 51 55 52 60 65 68 80 74 93 100 99 100 95 94 95 105 82 110 81 93 120 122 Avg Prop Armor Cover (%) 8 | . 13 11 11 12 1 . . . . . . . . . . . . . 8 . . . . . . . . . . . . . . 4 2 . . 8 Naked Turns . | . . . . . . . . . . . . . . . . . . . . . . . . . . . . . . . . . . . . . . . Heaviest Build 109 | 12 90 92 92 92 104 108 107 109 103 21 20 20 20 19 16 19 16 20 20 19 19 19 27 22 24 25 25 23 25 23 25 25 25 27 22 30 30 38 Greatest Support 80 | 40 40 16 16 16 80 80 80 80 80 20 20 20 20 20 20 20 20 20 20 20 20 22 22 27 25 27 25 25 27 25 27 26 28 30 32 32 32 32 Greatest Overweight (x) 5 | 2 5 5 5 5 5 1 1 1 5 1 . . . . . . . . . . . . 1 . . . . . . . . . . . . . . 1 Average Overweight (x) . | . 3 5 5 5 1 1 1 1 . . . . . . . . . . . . . . . . . . . . . . . . . . . . . . Largest Inventory Capacity 25 | 8 25 25 25 25 25 25 25 25 25 5 5 5 5 5 5 5 5 5 5 5 5 5 5 5 5 5 5 5 5 5 5 5 5 5 5 5 5 5 Average Capacity 15 | 7 21 25 25 25 25 25 25 25 9 5 5 5 5 5 5 5 5 5 5 5 5 5 5 5 5 5 5 5 5 5 5 5 5 5 5 5 5 5 Most Carried 25 | 8 23 25 25 25 25 25 25 25 25 5 5 5 5 5 5 5 5 5 5 5 5 5 5 5 5 5 5 5 5 5 5 5 5 5 5 5 5 5 Average Carried 14 | 5 16 24 24 24 24 24 24 24 6 4 5 4 5 4 5 4 5 4 4 5 4 4 4 5 4 5 5 5 4 4 4 4 4 4 4 4 5 4 Final Capacity 25 | 8 25 25 25 25 25 25 25 25 5 5 5 5 5 5 5 5 5 5 5 5 5 5 5 5 5 5 5 5 5 5 5 5 5 5 5 5 5 5 Final Carried 25 | 8 23 25 25 23 25 25 25 25 5 5 5 5 5 5 5 5 5 5 5 5 5 5 5 5 5 5 5 5 5 5 4 5 5 4 5 5 5 2 Class Distribution -------------------- 35% | Scavenger-Mutant 16% | Mutant 9% | Bothacker-Sprinter 8% | Sprinter 6% | Bothacker-Scout 5% | Botlord-Sprinter 4% | Scout 4% | Botlord-Mutant Dominant Class ---------------- Mutant | -10/Materials Mutant | -10/Mines Mutant | -10/Exiles Mutant | -9/Mines Scavenger-Mutant | -8/Materials Scavenger-Mutant | -8/Garrison Scavenger-Mutant | -8/Materials Scavenger-Mutant | -8/Garrison Scout | -7/Factory Sprinter | -7/Garrison Bothacker-Sprinter | -7/Factory Sprinter | -7/Garrison Sprinter | -7/Factory Scout | -7/Lower Caves Scout | -7/Lower Caves Scout | -7/Zion Scout | -6/Proximity Caves Sprinter | -6/Factory Sprinter | -6/Garrison Bothacker-Sprinter | -5/Factory Bothacker-Sprinter | -5/Garrison Bothacker-Sprinter | -5/Factory Bothacker-Sprinter | -5/Garrison Botlord-Sprinter | -4/Factory Botlord-Sprinter | -4/Garrison Botlord-Sprinter | -4/Factory Botlord-Scout | -4/Upper Caves Bothacker-Scout | -4/Upper Caves Bothacker-Scout | -4/Warlord Bothacker-Scout | -3/Proximity Caves Bothacker-Sprinter | -3/Research Hacker-Sprinter | -3/Garrison Hacker-Sprinter | -3/Research Hacker-Sprinter | -3/Garrison Hacker-Mutant | -2/Research Botlord-Mutant | -2/Garrison Botlord-Mutant | -1/Access Botlord-Mutant | -1/Command Resources | -11 -10 -10 -10 -9 -8 -8 -8 -8 -7 -7 -7 -7 -7 -7 -7 -7 -6 -6 -6 -5 -5 -5 -5 -4 -4 -4 -4 -4 -4 -3 -3 -3 -3 -3 -2 -2 -1 -1 ----------- Run | Yrd Mat Min Exi Min Mat Gar Mat Gar Fac Gar Fac Gar Fac Low Low Zio Pro Fac Gar Fac Gar Fac Gar Fac Gar Fac Upp Upp War Pro Res Gar Res Gar Res Gar Acc Com Matter Collected 10446 | 319 273 386 42 141 572 859 1174 974 . 449 90 417 23 234 40 . 16 99 486 115 281 76 918 98 561 54 10 42 138 206 40 436 223 6 263 230 127 28 Remotely . | . . . . . . . . . . . . . . . . . . . . . . . . . . . . . . . . . . . . . . . Salvage Created 12573 | 174 661 342 . 86 1648 757 1707 676 . 333 110 153 23 248 . . 39 254 362 322 331 247 636 161 591 267 110 . 66 218 128 447 380 124 381 376 34 181 Parts 657 | 13 34 19 . 10 85 51 75 57 . 17 5 11 3 9 . . 3 14 11 8 16 21 32 6 20 8 2 . 2 7 12 31 16 6 25 15 6 7 Haulers Intercepted 12 | . 2 . . . 5 . 5 . . . . . . . . . . . . . . . . . . . . . . . . . . . . . . . Recyclers Shooed 8 | . 2 . . . 4 . 1 . . . . . . . . . . . . . . . . 1 . . . . . . . . . . . . . . Parts Field Recycled . | . . . . . . . . . . . . . . . . . . . . . . . . . . . . . . . . . . . . . . . Retrieved Matter . | . . . . . . . . . . . . . . . . . . . . . . . . . . . . . . . . . . . . . . . Parts Self-Destructed 33 | . . . . . . . . . . . . . . 12 9 . 2 . . . . . . . . . . 6 . 4 . . . . . . . . Prevented . | . . . . . . . . . . . . . . . . . . . . . . . . . . . . . . . . . . . . . . . Parts Restored . | . . . . . . . . . . . . . . . . . . . . . . . . . . . . . . . . . . . . . . . Kills | -11 -10 -10 -10 -9 -8 -8 -8 -8 -7 -7 -7 -7 -7 -7 -7 -7 -6 -6 -6 -5 -5 -5 -5 -4 -4 -4 -4 -4 -4 -3 -3 -3 -3 -3 -2 -2 -1 -1 ------- Run | Yrd Mat Min Exi Min Mat Gar Mat Gar Fac Gar Fac Gar Fac Low Low Zio Pro Fac Gar Fac Gar Fac Gar Fac Gar Fac Upp Upp War Pro Res Gar Res Gar Res Gar Acc Com Combat Hostiles Destroyed 241 | . 10 11 . 7 19 24 22 26 . 5 . 8 . . . . 2 . 13 . 5 . 35 . 16 . . . 10 2 . 15 . 7 4 . . . Melee 26 | . . . . . . . . . . 2 . 4 . . . . 2 . 3 . 3 . 2 . 2 . . . . 2 . 2 . . 4 . . . Guns 57 | . 10 . . . 1 13 19 13 . . . . . . . . . . . . 1 . . . . . . . . . . . . . . . . . Cannons 14 | . . . . 3 11 . . . . . . . . . . . . . . . . . . . . . . . . . . . . . . . . . AOE 142 | . . 11 . 4 7 11 3 13 . 3 . 4 . . . . . . 8 . 1 . 33 . 14 . . . 10 . . 13 . 7 . . . . Classes Destroyed 26 | 2 3 1 . 4 4 1 1 1 . 1 . 1 . 1 . . . . 1 . 2 . . . . . . . 1 1 . . . 1 . . . . Worker 25 | . . . . 2 1 . 4 . . . . . . . . . . 2 . 3 . 1 . 2 . . . . . . 2 . 4 . 1 . 2 1 Builder 12 | . . . . . 2 . 1 . . . . . . . . . . 1 . . . 3 . . . . . . . . 2 . 2 . 1 . . . Tunneler 7 | 4 . . . . . . 1 . . . . . 1 . . . . . . . . 1 . . . . . . . . . . . . . . . . Hauler 12 | . 2 . . . 5 . 5 . . . . . . . . . . . . . . . . . . . . . . . . . . . . . . . Recycler 25 | 1 3 1 . . 5 . 3 . . . 1 . . . . . . 1 . 2 . 1 . 1 . 2 . . . . . . 2 . 1 . . 1 Minesweeper 2 | . . . . . . . . . . . . . . 2 . . . . . . . . . . . . . . . . . . . . . . . . Mechanic 2 | . . 2 . . . . . . . . . . . . . . . . . . . . . . . . . . . . . . . . . . . . Operator 2 | . . . . . . . . . . . . . . . . . . . . . 1 . . . . . . . . . . . . . 1 . . . Drone 5 | . . . . . . . . . . . . 1 . . . . 2 . . . . . . . . . . . . 2 . . . . . . . . Watcher 18 | . . . . . 5 . 3 . . . 1 . . . . . . 1 . . 3 1 . . . . . . . . 1 . 1 . 2 . . . Swarmer 99 | . 3 3 . 3 6 8 5 10 . 3 . 6 . . . . . . 7 . . . 14 . 8 . . . 2 . . 9 . 4 4 4 . . Cutter 3 | . . . . . . . . 3 . . . . . . . . . . . . . . . . . . . . . . . . . . . . . . Grunt 68 | . 7 8 . 1 5 7 9 2 . 1 . . . . . . . . 5 . 1 . 14 . 5 . . . 2 . . 1 . . . . . . Brawler 4 | . . . . . . . 2 . . . . . . . . . . . . . . . . . . . . . 2 . . . . . . . . . Duelist 5 | . . . . 1 . . . 1 . . . . . . . . . . . . 2 . . . . . . . 1 . . . . . . . . . Protector 1 | . . . . . . . . . . . . . . . . . . . . . . . . . . . . . 1 . . . . . . . . . Sentry 27 | . . . . . 7 7 6 5 . . . . . . . . . . . . . . 1 . . . . . . . . 1 . . . . . . Demolisher 1 | . . . . 1 . . . . . . . . . . . . . . . . . . . . . . . . . . . . . . . . . . Specialist 1 | . . . . . . . . . . 1 . . . . . . . . . . . . . . . . . . . . . . . . . . . . Hunter 11 | . . . . . 1 1 . 2 . . . . . . . . . . . . . . 1 . 2 . . . 2 . . 2 . . . . . . Programmer 14 | . . . . . . 1 . 3 . . . 1 . . . . . . . . 1 . 5 . . . . . . . . 1 . 2 . . . . Behemoth 3 | . . . . . . . . . . . . . . . . . . . 1 . . . . . 1 . . . . . . 1 . . . . . . Striker 1 | . . . . . . . . . . . . . . . . . . . . . 1 . . . . . . . . . . . . . . . . . Executioner 1 | . . . . . . . . . . . . . . . . . . . . . . . . . . . . . . . . . . 1 . . . . Decomposer 3 | . . . . . . . . . . . . . . 2 . . 1 . . . . . . . . . . . . . . . . . . . . . Packrat 4 | . . . . . . . . . . . . . . 2 . . . . . . . . . . . . 2 . . . . . . . . . . . Samaritan 1 | . . . . . . . . . . . . . . . . . . . . . . . . . . . . . . 1 . . . . . . . . Assembled 1 | . . . . 1 . . . . . . . . . . . . . . . . . . . . . . . . . . . . . . . . . . Thug 1 | . . 1 . . . . . . . . . . . . . . . . . . . . . . . . . . . . . . . . . . . . Best Kill Streak 10 | 2 5 6 . 4 5 7 5 4 . 3 1 3 1 1 . . 2 3 3 2 2 2 10 2 7 1 . . 8 1 3 10 5 7 5 . 1 2 Combat Bots Only 10 | . 5 4 . 3 5 7 5 4 . 3 . 3 . . . . 2 . 3 . 2 . 10 . 7 . . . 8 1 . 10 . 7 4 . . . Max Kills in Single Turn 4 | 1 1 3 . 2 3 2 3 3 . 2 1 3 1 1 . . 1 1 2 1 1 1 4 1 4 1 1 . 3 1 1 4 1 3 1 1 1 1 Gunslinging . | . . . . . . . . . . . . . . . . . . . . . . . . . . . . . . . . . . . . . . . Exploded 4 | . . 2 . 2 3 2 3 3 . 2 . 3 . . . . . . 2 . 1 . 4 . 4 . . . 3 . . 4 . 3 . . . . Melee 1 | . . . . . . . . . . 1 . 1 . . . . 1 . 1 . 1 . 1 . 1 . . . . 1 . 1 . . 1 . . . Uniques/NPCs Destroyed . | . . . . . . . . . . . . . . . . . . . . . . . . . . . . . . . . . . . . . . . Combat | -11 -10 -10 -10 -9 -8 -8 -8 -8 -7 -7 -7 -7 -7 -7 -7 -7 -6 -6 -6 -5 -5 -5 -5 -4 -4 -4 -4 -4 -4 -3 -3 -3 -3 -3 -2 -2 -1 -1 -------- Run | Yrd Mat Min Exi Min Mat Gar Mat Gar Fac Gar Fac Gar Fac Low Low Zio Pro Fac Gar Fac Gar Fac Gar Fac Gar Fac Upp Upp War Pro Res Gar Res Gar Res Gar Acc Com Hostile Shots Fired 926 | . 44 12 . 11 73 100 82 52 . 44 . 116 . . 1 6 . . 47 . 51 7 19 . 15 . . 8 19 4 4 19 18 42 13 . 12 107 Missed 391 | . 5 2 . 3 23 32 23 15 . 17 . 67 . . 1 4 . . 22 . 19 2 9 . 9 . . 7 12 4 2 13 14 28 6 . 9 43 Hits 535 | . 39 10 . 8 50 68 59 37 . 27 . 49 . . . 2 . . 25 . 32 5 10 . 6 . . 1 7 . 2 6 4 14 7 . 3 64 Melee 14 | . . . . . . . 2 4 . . . . . . . . . . . . 8 . . . . . . . . . . . . . . . . . Projectile 521 | . 39 10 . 8 50 68 57 33 . 27 . 49 . . . 2 . . 25 . 24 5 10 . 6 . . 1 7 . 2 6 4 14 7 . 3 64 AOE 9 | . . . . 3 1 . . 2 . . . . . . . . . . . . . . . . . . . . . . . . . . . . . 3 Critical Strikes 30 | . . . . . . 5 4 2 . 1 . . . . . . . . 1 . 2 . . . . . . . 1 . . . 1 3 . . . 10 Actively Blocked 1 | . . . . . . . . . . . . . . . . . . . . . 1 . . . . . . . . . . . . . . . . . Part Disruptions 1 | . . . . . . . . . . . . . . . . . . . . . . . . . . . . . . . . . . . . . . 1 Damage Taken 10549 | . 486 130 . 184 858 1173 862 661 . 312 . 694 . . . . . . 550 . 768 106 199 . 83 . . 37 149 . 29 287 82 348 151 . 71 2329 Core 2652 | . 125 17 . . 73 65 15 66 . 102 . 178 . . . . . . 52 . 106 . 18 . . . . 25 40 . . 48 18 75 23 . . 1606 Absorbed by Shields 223 | . . . . . . . 12 . . . . 72 . . . . . . 10 . 109 . . . . . . . . . . . . . . . . 20 Redirected to Shielding 368 | . . . . . . . . . . 38 . 92 . . . . . . 32 . 113 . . . . . . . . . 12 . 11 28 42 . . . Regen/Repaired (Parts) 745 | . 173 . . . 31 . 130 . . . 38 . 86 . . . . . 37 . 51 30 . 23 23 . . . . . . . 123 . . . . . Core Remaining (%) 80 | 100 . . . 43 . . . 60 . . . . . . . . 60 . 93 . . . 87 . . . . . . 94 . . . 89 . 98 . . Volleys Fired 814 | 30 68 7 . 13 100 97 99 53 5 12 6 37 8 13 . . 2 9 19 5 25 14 43 5 28 2 . 6 18 . . 28 3 16 2 14 15 12 Largest 2 | 2 2 2 . 2 2 2 2 2 1 1 1 1 1 1 . . 1 1 1 1 1 1 1 1 1 1 . 1 1 . . 1 1 1 1 1 1 1 Hottest 120 | 70 100 60 . 120 120 100 50 69 5 33 5 33 5 40 . . 5 5 36 5 36 7 46 7 46 7 . 7 46 . . 46 7 46 7 7 7 120 Shots Fired 1155 | 60 113 12 . 19 180 143 189 92 5 12 6 37 8 13 . . 2 9 19 5 25 14 43 5 28 2 . 6 18 . . 28 3 16 2 14 15 12 Gun 535 | 60 98 . . . 24 92 180 76 . . . . . . . . . . . . 5 . . . . . . . . . . . . . . . . . Cannon 170 | . . . . 12 139 . . . . . . . . 12 . . . . . . . . . . . . . . . . . . . . . . . 7 Launcher 193 | . . 12 . 7 4 20 1 11 . 7 . 7 . . . . . . 12 . 2 . 37 . 19 . . . 17 . . 22 . 15 . . . . Special 257 | . 15 . . . 13 31 8 5 5 5 6 30 8 1 . . 2 9 7 5 18 14 6 5 9 2 . 6 1 . . 6 3 1 2 14 15 5 Kinetic 470 | 30 51 . . . 24 92 180 76 . . . . . 12 . . . . . . 5 . . . . . . . . . . . . . . . . . Thermal 291 | 27 62 . . 12 152 31 . . . . . . . . . . . . . . . . . . . . . . . . . . . . . . . 7 Explosive 193 | . . 12 . 7 4 20 1 11 . 7 . 7 . . . . . . 12 . 2 . 37 . 19 . . . 17 . . 22 . 15 . . . . Electromagnetic 3 | 3 . . . . . . . . . . . . . . . . . . . . . . . . . . . . . . . . . . . . . . Robot Hit Streak 30 | 7 16 3 . 4 18 14 30 17 16 21 5 7 9 4 . . 1 3 8 13 5 6 8 6 15 17 . 21 2 . . 4 4 5 7 12 23 25 Robot Miss Streak 3 | 2 3 2 . 1 3 2 2 2 . . 1 3 1 . . . 1 2 2 . 3 1 1 . . . . 1 . . . 1 1 . . 1 . 1 Penetration Max 1 | . . . . . . . . . . . . . . . . . . . . . 1 . . . . . . . . . . . . . . . . . Secondary Targets 7 | . 2 . . . . 2 1 2 . . . . . . . . . . . . . . . . . . . . . . . . . . . . . . Max Gunslinging Chain 1 | . 1 . . . . 1 1 1 . . . . . . . . . . . . . . . . . . . . . . . . . . . . . . Shots Hit Robots 846 | 36 63 3 . 8 110 73 133 65 7 27 7 26 10 7 1 . 4 14 24 11 29 20 10 11 29 4 2 6 2 6 5 14 13 4 14 22 19 7 Core Hits 615 | 8 26 24 . 17 54 40 64 40 . 14 2 14 1 5 . . 1 5 18 4 18 6 72 2 41 1 2 1 50 4 4 26 6 26 7 7 2 3 Critical Kills 1 | . . . . . . . 1 . . . . . . . . . . . . . . . . . . . . . . . . . . . . . . . Critical Parts Destroyed 4 | 1 . . . . . 1 1 . . . . . . . . . . . . . 1 . . . . . . . . . . . . . . . . . Critical Strikes 29 | 4 1 . . . . 1 2 . . 4 . 1 . . . . . . 1 . 1 . . 1 2 . . . . 1 1 3 1 . 4 . . 1 Burn 4 | 3 1 . . . . . . . . . . . . . . . . . . . . . . . . . . . . . . . . . . . . . Destroy 5 | 1 . . . . . 1 2 . . . . . . . . . . . . . 1 . . . . . . . . . . . . . . . . . Sever 6 | . . . . . . . . . . 4 . 1 . . . . . . 1 . . . . . . . . . . . . . . . . . . . Impale 14 | . . . . . . . . . . . . . . . . . . . . . . . . 1 2 . . . . 1 1 3 1 . 4 . . 1 Melee Attacks 676 | . . . . . . . 3 14 5 65 17 22 16 25 1 . 6 27 63 7 61 34 28 24 52 24 9 2 3 9 37 15 28 2 16 19 25 17 Impact . | . . . . . . . . . . . . . . . . . . . . . . . . . . . . . . . . . . . . . . . Slashing 284 | . . . . . . . 3 14 5 65 17 22 16 25 1 . 6 27 63 7 13 . . . . . . . . . . . . . . . . . Piercing 392 | . . . . . . . . . . . . . . . . . . . . . 48 34 28 24 52 24 9 2 3 9 37 15 28 2 16 19 25 17 Sneak Attacks 91 | . . . . . . . 1 . 3 . 1 . 3 6 1 . 2 4 . 5 4 7 . 4 6 2 2 . . 3 4 7 10 . 6 6 2 2 Combat Hostiles 2 | . . . . . . . . . . . . . . . . . 1 . . . . . . . . . . . . 1 . . . . . . . . Follow-up Attacks 3 | . . . . . . . . . . . . . . . . . . . . . 1 . . . . . . . . . . . 2 . . . . . Damage Inflicted 42750 | 351 721 873 . 482 2283 2294 2424 1675 198 1478 137 713 219 522 68 . 202 542 1376 534 1129 847 6082 572 4477 268 168 52 3606 519 464 2796 1044 1612 750 770 267 235 Guns 5643 | 351 721 . . . 222 1083 2162 1004 . . . . . . . . . . . . 100 . . . . . . . . . . . . . . . . . Cannons 1808 | . . . . 141 1667 . . . . . . . . . . . . . . . . . . . . . . . . . . . . . . . . . Explosions 20980 | . . 870 . 341 394 1211 197 671 . 171 . 463 . . . . . . 726 . 292 . 5756 . 2839 . . . 3560 . . 1877 . 1612 . . . . Melee 14312 | . . . . . . . 65 . 198 1307 137 250 219 522 68 . 202 542 650 534 737 847 326 572 1638 268 168 52 46 519 464 919 1044 . 750 770 267 231 Ramming 7 | . . 3 . . . . . . . . . . . . . . . . . . . . . . . . . . . . . . . . . . . 4 Kinetic 4966 | 139 256 . . . 222 1083 2162 1004 . . . . . . . . . . . . 100 . . . . . . . . . . . . . . . . . Thermal 2473 | 200 465 . . 141 1667 . . . . . . . . . . . . . . . . . . . . . . . . . . . . . . . . . Explosive 20980 | . . 870 . 341 394 1211 197 671 . 171 . 463 . . . . . . 726 . 292 . 5756 . 2839 . . . 3560 . . 1877 . 1612 . . . . Electromagnetic 12 | 12 . . . . . . . . . . . . . . . . . . . . . . . . . . . . . . . . . . . . . . Impact . | . . . . . . . . . . . . . . . . . . . . . . . . . . . . . . . . . . . . . . . Slashing 4907 | . . . . . . . 65 . 198 1307 137 250 219 522 68 . 202 542 650 534 213 . . . . . . . . . . . . . . . . . Piercing 9405 | . . . . . . . . . . . . . . . . . . . . . 524 847 326 572 1638 268 168 52 46 519 464 919 1044 . 750 770 267 231 Highest Corruption 17 | . . . . . 2 2 2 2 . . . . . . . . . . . . . . 1 . . . . . . . . . . . 2 2 . 17 Average Corruption 2 | . . . . . 2 2 2 2 . . . . . . . . . . . . . . 1 . . . . . . . . . . . 2 2 . 5 Corruption Purged . | . . . . . . . . . . . . . . . . . . . . . . . . . . . . . . . . . . . . . . . Corruption Blocked . | . . . . . . . . . . . . . . . . . . . . . . . . . . . . . . . . . . . . . . . Effects 114 | . . . . . 12 26 36 26 . . . . . . . . . . . . . . 3 . . . . . . . . . . . . 5 . 6 Message Errors 29 | . . . . . 3 7 6 9 . . . . . . . . . . . . . . 1 . . . . . . . . . . . . 1 . 2 Matter Fused 29 | . . . . . 3 6 10 4 . . . . . . . . . . . . . . 2 . . . . . . . . . . . . 2 . 2 Heat Flow Errors 16 | . . . . . 1 6 8 . . . . . . . . . . . . . . . . . . . . . . . . . . . . . . 1 Energy Discharges 12 | . . . . . 1 1 3 5 . . . . . . . . . . . . . . . . . . . . . . . . . . . 2 . . Parts Rejected 1 | . . . . . . . . . . . . . . . . . . . . . . . . . . . . . . . . . . . . . . 1 Data Loss (minor) 18 | . . . . . 2 3 7 6 . . . . . . . . . . . . . . . . . . . . . . . . . . . . . . Data Loss (major) 4 | . . . . . . 2 1 1 . . . . . . . . . . . . . . . . . . . . . . . . . . . . . . Misfires 2 | . . . . . . 1 1 . . . . . . . . . . . . . . . . . . . . . . . . . . . . . . . Alerts 2 | . . . . . 2 . . . . . . . . . . . . . . . . . . . . . . . . . . . . . . . . . Weapon Failures 1 | . . . . . . . . 1 . . . . . . . . . . . . . . . . . . . . . . . . . . . . . . Overload Shots . | . . . . . . . . . . . . . . . . . . . . . . . . . . . . . . . . . . . . . . . Overflow Damage 3151 | . . 13 . 18 44 84 . 48 25 155 . 18 78 67 . . 82 37 78 120 84 172 296 144 398 81 . . 11 184 75 234 297 24 272 9 3 . Projectiles 35 | . . . . . 35 . . . . . . . . . . . . . . . . . . . . . . . . . . . . . . . . . Explosions 686 | . . 13 . 18 9 84 . 48 . . . 1 . . . . . . 2 . 16 . 260 . 46 . . . 11 . . 154 . 24 . . . . Melee 2430 | . . . . . . . . . 25 155 . 17 78 67 . . 82 37 76 120 68 172 36 144 352 81 . . . 184 75 80 297 . 272 9 3 . Knockbacks . | . . . . . . . . . . . . . . . . . . . . . . . . . . . . . . . . . . . . . . . Impact . | . . . . . . . . . . . . . . . . . . . . . . . . . . . . . . . . . . . . . . . Kinetic . | . . . . . . . . . . . . . . . . . . . . . . . . . . . . . . . . . . . . . . . Secondary . | . . . . . . . . . . . . . . . . . . . . . . . . . . . . . . . . . . . . . . . Self-Inflicted Damage 574 | . . 21 . 3 47 126 . 67 . . . 55 . . . . . . 116 . 59 . . . . . . . . . . 78 . . . . . 2 Shots 18 | . . 1 . 1 1 4 . 2 . . . 2 . . . . . . 4 . 2 . . . . . . . . . . 1 . . . . . . Rammed 3 | . . 1 . . . . . . . . . . . . . . . . . . . . . . . . . . . . . . . . . . . 2 Targets Rammed 3 | . . 1 . . . . . . . . . . . . . . . . . . . . . . . . . . . . . . . . . . . 2 Kicked . | . . . . . . . . . . . . . . . . . . . . . . . . . . . . . . . . . . . . . . . Crushed . | . . . . . . . . . . . . . . . . . . . . . . . . . . . . . . . . . . . . . . . Highest Temperature 419 | 110 309 30 . 170 192 263 273 . . 1 . 7 . . . . . . 16 . . . 3 . 2 . . . 15 . . 2 . 22 . . . 419 Average Temperature 62 | 44 68 19 . 68 54 85 72 . . 1 . 3 . . . . . . 5 . . . 3 . 2 . . . 15 . . 2 . 8 . . . 101 Received Heat Transfer 2653 | . 213 51 . 66 297 378 291 108 . 75 . 145 . . . . . . 183 . 69 9 36 . . . . . 48 . . . . 72 . . . 612 Effects 4 | . 1 . . . . . 3 . . . . . . . . . . . . . . . . . . . . . . . . . . . . . . . Energy Bleed 1 | . 1 . . . . . . . . . . . . . . . . . . . . . . . . . . . . . . . . . . . . . Interference 3 | . . . . . . . 3 . . . . . . . . . . . . . . . . . . . . . . . . . . . . . . . Siege Activations . | . . . . . . . . . . . . . . . . . . . . . . . . . . . . . . . . . . . . . . . Martial Activations . | . . . . . . . . . . . . . . . . . . . . . . . . . . . . . . . . . . . . . . . Shielding Activations . | . . . . . . . . . . . . . . . . . . . . . . . . . . . . . . . . . . . . . . . Robots Disrupted . | . . . . . . . . . . . . . . . . . . . . . . . . . . . . . . . . . . . . . . . Combat Hostiles . | . . . . . . . . . . . . . . . . . . . . . . . . . . . . . . . . . . . . . . . Robots Corrupted . | . . . . . . . . . . . . . . . . . . . . . . . . . . . . . . . . . . . . . . . Combat Hostiles . | . . . . . . . . . . . . . . . . . . . . . . . . . . . . . . . . . . . . . . . Parts Fried . | . . . . . . . . . . . . . . . . . . . . . . . . . . . . . . . . . . . . . . . Impact Corruptions . | . . . . . . . . . . . . . . . . . . . . . . . . . . . . . . . . . . . . . . . Robots Melted . | . . . . . . . . . . . . . . . . . . . . . . . . . . . . . . . . . . . . . . . Combat Hostiles . | . . . . . . . . . . . . . . . . . . . . . . . . . . . . . . . . . . . . . . . Parts Melted 17 | 1 2 . . . 5 . . . . 2 . . . . . . . . 7 . . . . . . . . . . . . . . . . . . . Heat Transferred 5846 | 814 1221 . . 296 3515 . . . . . . . . . . . . . . . . . . . . . . . . . . . . . . . . . Parts Sabotaged . | . . . . . . . . . . . . . . . . . . . . . . . . . . . . . . . . . . . . . . . Parts Stolen . | . . . . . . . . . . . . . . . . . . . . . . . . . . . . . . . . . . . . . . . Parts Stripped . | . . . . . . . . . . . . . . . . . . . . . . . . . . . . . . . . . . . . . . . Power Chain Reactions . | . . . . . . . . . . . . . . . . . . . . . . . . . . . . . . . . . . . . . . . Alert | -11 -10 -10 -10 -9 -8 -8 -8 -8 -7 -7 -7 -7 -7 -7 -7 -7 -6 -6 -6 -5 -5 -5 -5 -4 -4 -4 -4 -4 -4 -3 -3 -3 -3 -3 -2 -2 -1 -1 ------- Run | Yrd Mat Min Exi Min Mat Gar Mat Gar Fac Gar Fac Gar Fac Low Low Zio Pro Fac Gar Fac Gar Fac Gar Fac Gar Fac Upp Upp War Pro Res Gar Res Gar Res Gar Acc Com Maximum Alert Level 4 | . . . . . 1 4 2 4 2 3 2 2 1 . . . . . 3 2 2 1 4 3 4 2 . . . . . 2 1 3 2 3 2 1 Low Security (%) 35 | 100 100 100 . 100 73 10 27 7 . . . 3 . . . . . 100 14 . . 34 6 . . . . . . . 100 9 . . . . . 12 Level 1 20 | . . . . . 26 10 34 21 . . 80 35 100 . . . . . 1 . 30 65 18 . . . . . . . . 39 100 58 44 . . 87 Level 2 24 | . . . . . . 29 37 18 100 48 19 61 . . . . . . 25 100 69 . 3 72 12 100 . . . . . 51 . 36 55 46 100 . Level 3 15 | . . . . . . 37 . 42 . 51 . . . . . . . . 57 . . . 39 27 60 . . . . . . . . 4 . 53 . . Level 4 3 | . . . . . . 12 . 10 . . . . . . . . . . . . . . 32 . 26 . . . . . . . . . . . . . Level 5 . | . . . . . . . . . . . . . . . . . . . . . . . . . . . . . . . . . . . . . . . High Security . | . . . . . . . . . . . . . . . . . . . . . . . . . . . . . . . . . . . . . . . Max Security . | . . . . . . . . . . . . . . . . . . . . . . . . . . . . . . . . . . . . . . . Peak Influence 1390 | 5 118 150 . 103 302 1231 653 1208 634 1014 537 688 338 . . . . 150 998 528 590 311 1390 739 1313 688 . . . . 23 638 358 723 565 811 607 374 Initial 729 | . . 10 . . 27 109 599 156 634 404 532 197 333 . . . . 150 13 523 308 309 90 729 415 688 . . . . . 3 358 240 406 423 486 339 Average 393 | 1 26 47 . 13 98 669 347 679 604 692 370 472 279 . . . . 82 679 483 424 222 854 665 955 599 . . . . 3 415 333 392 427 712 512 305 Influence Increases 13658 | 25 393 331 . 204 671 1202 761 1082 14 730 40 619 59 10 . . 10 225 1045 28 542 166 1410 81 898 88 . 44 305 15 109 675 123 513 269 388 463 120 Destroy 0b10 Robot/C 5240 | . 200 220 . 120 380 520 440 540 . 120 . 280 . . . . . . 400 . 120 . 740 . 320 . . 40 180 . . 300 . 140 80 . 100 . Destroy 0b10 Robot/NC 615 | 25 25 15 . 10 90 . 85 . . 20 10 5 5 10 . . 10 25 . 25 20 35 . 15 25 10 . . 5 15 25 . 45 . 25 15 10 10 Destroy Leader 694 | . 44 30 . 20 130 20 136 30 . 10 2 40 . . . . . 2 30 . . 2 80 . 40 . . . . . 2 30 2 20 14 . 10 . Allied During Kill 169 | . . 8 . . . 11 . 1 . 5 . 24 . . . . . . 21 1 9 2 43 . 15 . . 4 . . . . . . . . 25 . Trap Triggered on 0b10 90 | . . . . . . 10 . . . . . . . . . . . . 60 . . . . . . . . . . . . . . 20 . . . . Successful Hack 416 | . 33 . . . 23 . 24 . 12 28 13 . 26 . . . . 10 . . 28 45 . 8 12 34 . . . . 18 . 18 6 12 . 48 18 Select Force Hacks 60 | . 60 . . . . . . . . . . . . . . . . . . . . . . . . . . . . . . . . . . . . . Disable Machine 345 | . . . . 15 15 90 15 . . 30 . . . . . . . 15 15 . 45 . 30 15 60 . . . . . . . . . . . . . Anti-Garrison Action 1950 | . . . . . . 400 . 400 . 200 . 100 . . . . . . 100 . 100 . 100 . 100 . . . . . . 50 . 50 . 350 . . Destroy Structure 2354 | . 16 58 . 39 33 151 16 111 2 122 15 65 13 . . . . 8 149 2 115 52 342 28 251 44 . . . . 64 280 28 172 3 23 90 62 Advance Influence 150 | . . . . . . . . . . . . . . . . . . 150 . . . . . . . . . . . . . . . . . . . . Partial Spotted 315 | . 15 . . . . . . . . 30 . 30 15 . . . . 15 15 . 30 . . 15 30 . . . . . . . . . 45 . 60 15 Lose Combat Pursuer 1260 | . . . . . . . 45 . . 165 . 75 . . . . . . 255 . 75 30 75 . 45 . . . 120 . . 15 30 105 90 . 120 15 Influence Decreases 13509 | 25 365 310 49 131 575 140 1751 115 644 294 772 265 463 242 . . 10 206 66 585 393 627 149 877 179 945 289 182 61 288 105 41 440 111 427 142 743 502 Entered New Map 6835 | . . 18 49 . 46 60 632 85 574 174 482 85 303 87 . . . . 6 475 133 281 39 661 179 625 169 32 29 273 . 1 280 81 317 142 325 192 Time Decay 4449 | 25 365 292 . 131 379 . 714 . 70 . 130 . 160 155 . . 10 206 . 110 . 286 . 206 . 170 120 150 32 15 105 . 150 . 100 . 238 130 Lost Part 380 | . . . . . . 20 30 . . 10 . . . . . . . . 20 . 100 . 10 . . . . . . . . 20 . 30 10 . . 130 Lost Ally 1020 | . . . . . . 60 . 30 . 110 10 180 . . . . . . 40 . 160 60 100 10 . . . . . . . 20 10 . . . 180 50 Purge Threat 825 | . . . . . 150 . 375 . . . 150 . . . . . . . . . . . . . . 150 . . . . . . . . . . . . Squads Dispatched 24 | . 2 2 . . . . 2 . . . . . . . . . . . . . . 2 . 2 . 2 . . . . 2 . 2 . 1 . 5 2 Investigation 8 | . 2 . . . . . . . . . . . . . . . . . . . . . . 1 . 1 . . . . 1 . 1 . . . 1 1 Extermination 7 | . . . . . . . . . . . . . . . . . . . . . . 1 . 1 . 1 . . . . 1 . . . 1 . 1 1 Reinforcement 3 | . . . . . . . 1 . . . . . . . . . . . . . . 1 . . . . . . . . . . 1 . . . . . Assault 5 | . . 2 . . . . 1 . . . . . . . . . . . . . . . . . . . . . . . . . . . . . 2 . Garrison 1 | . . . . . . . . . . . . . . . . . . . . . . . . . . . . . . . . . . . . . 1 . Intercept . | . . . . . . . . . . . . . . . . . . . . . . . . . . . . . . . . . . . . . . . Searches Triggered . | . . . . . . . . . . . . . . . . . . . . . . . . . . . . . . . . . . . . . . . Construction Impeded 1 | . . . . . . . . . . . . . . . . . . . . . . 1 . . . . . . . . . . . . . . . . Haulers Reinforced . | . . . . . . . . . . . . . . . . . . . . . . . . . . . . . . . . . . . . . . . Active Scanning Responses . | . . . . . . . . . . . . . . . . . . . . . . . . . . . . . . . . . . . . . . . Cargo Convoy Interrupts . | . . . . . . . . . . . . . . . . . . . . . . . . . . . . . . . . . . . . . . . Alert ID Control Effect 31 | . . . . . . . . . . . . . . . . . . . 4 . 11 . 2 . 4 . . 1 . . . 1 . . . . 8 . Stealth | -11 -10 -10 -10 -9 -8 -8 -8 -8 -7 -7 -7 -7 -7 -7 -7 -7 -6 -6 -6 -5 -5 -5 -5 -4 -4 -4 -4 -4 -4 -3 -3 -3 -3 -3 -2 -2 -1 -1 --------- Run | Yrd Mat Min Exi Min Mat Gar Mat Gar Fac Gar Fac Gar Fac Low Low Zio Pro Fac Gar Fac Gar Fac Gar Fac Gar Fac Upp Upp War Pro Res Gar Res Gar Res Gar Acc Com Distress Signals 16 | . 1 . . . 2 . 3 . . . . . . . . . . . . . . . . 1 . . . . . . . . 1 . 2 . 4 2 Communications Jammed . | . . . . . . . . . . . . . . . . . . . . . . . . . . . . . . . . . . . . . . . Distress Signals . | . . . . . . . . . . . . . . . . . . . . . . . . . . . . . . . . . . . . . . . Times Spotted 445 | . 17 13 . 8 32 24 39 23 1 18 2 29 1 . 3 2 3 8 30 . 29 5 18 3 11 . . 2 20 3 3 13 8 15 9 . 22 31 Peak Tracking Total 60 | . 6 4 . 3 7 4 4 6 1 6 1 7 1 . 3 3 1 3 10 . 8 3 8 1 6 1 . 2 13 2 2 5 9 10 6 . 10 60 Tactical Retreats 41 | . . . . 2 . . 3 . . 6 . 3 . . . . . . 4 . 3 1 3 . 1 . . . 3 . . 1 1 3 2 . 4 1 Traps | -11 -10 -10 -10 -9 -8 -8 -8 -8 -7 -7 -7 -7 -7 -7 -7 -7 -6 -6 -6 -5 -5 -5 -5 -4 -4 -4 -4 -4 -4 -3 -3 -3 -3 -3 -2 -2 -1 -1 ------- Run | Yrd Mat Min Exi Min Mat Gar Mat Gar Fac Gar Fac Gar Fac Low Low Zio Pro Fac Gar Fac Gar Fac Gar Fac Gar Fac Upp Upp War Pro Res Gar Res Gar Res Gar Acc Com Traps Triggered 50 | . 3 . . . 1 4 1 11 . 1 . 4 . . . . . . 4 . 4 1 6 2 2 . . . . . 1 1 . 1 1 . 2 . Indirectly . | . . . . . . . . . . . . . . . . . . . . . . . . . . . . . . . . . . . . . . . Trap Hack Attempts . | . . . . . . . . . . . . . . . . . . . . . . . . . . . . . . . . . . . . . . . Triggered . | . . . . . . . . . . . . . . . . . . . . . . . . . . . . . . . . . . . . . . . Disarmed . | . . . . . . . . . . . . . . . . . . . . . . . . . . . . . . . . . . . . . . . Reprogrammed . | . . . . . . . . . . . . . . . . . . . . . . . . . . . . . . . . . . . . . . . Reused 10 | . . . . . . 1 . . . . . . . . . . . . 6 . . . . . . . . . 1 . . . . 2 . . . . Traps Extracted 6 | . . . . . . . . . . . . . . 4 . . . . 1 . . . . . . . . . 1 . . . . . . . . . Installed 17 | . . . . . . 1 . . . . . . . 4 . . . . 8 . . . . . . . . . 2 . . . . 2 . . . . Triggered 10 | . . . . . . 1 . . . . . . . . . . . . 6 . . . . . . . . . 1 . . . . 2 . . . . Most Traps Carried 6 | . . . . . . 1 . . . . . . . 4 4 4 4 4 6 3 3 3 . . 4 4 4 4 4 3 3 3 3 3 1 1 . . Machines | -11 -10 -10 -10 -9 -8 -8 -8 -8 -7 -7 -7 -7 -7 -7 -7 -7 -6 -6 -6 -5 -5 -5 -5 -4 -4 -4 -4 -4 -4 -3 -3 -3 -3 -3 -2 -2 -1 -1 ---------- Run | Yrd Mat Min Exi Min Mat Gar Mat Gar Fac Gar Fac Gar Fac Low Low Zio Pro Fac Gar Fac Gar Fac Gar Fac Gar Fac Upp Upp War Pro Res Gar Res Gar Res Gar Acc Com Machines Disabled 51 | . 1 . . 1 1 7 1 3 . 8 . 2 . . . . . 1 3 . 5 . 4 1 6 . . . . . . 1 . 1 . 5 . . Max in Single Turn 1 | . 1 . . 1 1 1 1 1 . 1 . 1 . . . . . 1 1 . 1 . 1 1 1 . . . . . . 1 . 1 . 1 . . Garrison Access 4 | . . . . . . . . . . . . . 1 . . . . . . 1 . . . . . . . . . . . . . . . . 2 . Garrison Relay 25 | . . . . . . . . 4 . 4 . 2 . . . . . . 2 . 2 . 2 . 2 . . . . . . 1 . 1 . 5 . . Machines Repaired . | . . . . . . . . . . . . . . . . . . . . . . . . . . . . . . . . . . . . . . . Machines Dismantled . | . . . . . . . . . . . . . . . . . . . . . . . . . . . . . . . . . . . . . . . Machines Sabotaged . | . . . . . . . . . . . . . . . . . . . . . . . . . . . . . . . . . . . . . . . Overloaded Fab Kills . | . . . . . . . . . . . . . . . . . . . . . . . . . . . . . . . . . . . . . . . Hacking | -11 -10 -10 -10 -9 -8 -8 -8 -8 -7 -7 -7 -7 -7 -7 -7 -7 -6 -6 -6 -5 -5 -5 -5 -4 -4 -4 -4 -4 -4 -3 -3 -3 -3 -3 -2 -2 -1 -1 --------- Run | Yrd Mat Min Exi Min Mat Gar Mat Gar Fac Gar Fac Gar Fac Low Low Zio Pro Fac Gar Fac Gar Fac Gar Fac Gar Fac Upp Upp War Pro Res Gar Res Gar Res Gar Acc Com Machines Accessed 128 | . 11 . 2 . 10 2 11 4 3 2 5 . 8 1 2 . . 9 . 2 2 10 1 5 2 6 . . . . 5 . 6 1 3 2 9 4 Terminals 80 | . 8 . . . 8 2 7 4 1 2 2 . 4 . . . . 5 . . 2 4 1 1 2 5 . . . . 3 . 3 1 2 2 7 4 Fabricators 5 | . . . . . . . . . . . . . . . . . . . . . . . . 2 . 1 . . . . . . 2 . . . . . Repair Stations 8 | . 1 . . . 1 . 1 . . . 1 . 1 . . . . 1 . . . 1 . 1 . . . . . . . . . . . . . . Recycling Units 8 | . 2 . . . . . . . 1 . 1 . 1 . . . . . . . . 2 . . . . . . . . 1 . . . . . . . Scanalyzers 7 | . . . . . . . 2 . . . . . 1 . . . . 2 . . . 2 . . . . . . . . . . . . . . . . Garrison Access 15 | . . . . . 1 . 1 . 1 . 1 . 1 . . . . 1 . 2 . 1 . 1 . . . . . . 1 . 1 . 1 . 2 . Total Hacks 310 | . 42 . 5 . 35 2 43 8 4 3 11 . 16 1 2 . . 17 . 2 3 21 2 7 4 15 . . . . 10 . 15 2 9 4 19 8 Successful 171 | . 30 . 5 . 20 1 27 . 3 2 7 . 4 1 2 . . 5 . 2 2 11 1 4 1 8 . . . . 4 . 9 1 4 2 10 5 Failed 139 | . 12 . . . 15 1 16 8 1 1 4 . 12 . . . . 12 . . 1 10 1 3 3 7 . . . . 6 . 6 1 5 2 9 3 Catastrophic 26 | . . . . . 1 1 1 1 . . . . 3 . . . . 6 . . . 4 . 1 1 2 . . . . 2 . . . 1 . . 2 Database Lockouts . | . . . . . . . . . . . . . . . . . . . . . . . . . . . . . . . . . . . . . . . Manual 145 | . 27 . 1 . 27 1 22 . 2 . 5 . 4 . . . . 8 . . . 6 . 3 . 5 . . . . 4 . 8 . 8 . 8 6 Terminals 213 | . 29 . . . 30 2 28 8 2 3 5 . 9 . . . . 10 . . 3 10 2 1 4 11 . . . . 8 . 9 2 8 4 17 8 Fabricators 12 | . . . . . . . . . . . . . . . . . . . . . . . . 3 . 4 . . . . . . 5 . . . . . Repair Stations 20 | . 6 . . . 2 . 2 . . . 3 . 1 . . . . 3 . . . 1 . 2 . . . . . . . . . . . . . . Recycling Units 17 | . 7 . . . . . . . 1 . 2 . 3 . . . . . . . . 3 . . . . . . . . 1 . . . . . . . Scanalyzers 23 | . . . . . . . 12 . . . . . 2 . . . . 3 . . . 6 . . . . . . . . . . . . . . . . Garrison Access 17 | . . . . . 3 . 1 . 1 . 1 . 1 . . . . 1 . 2 . 1 . 1 . . . . . . 1 . 1 . 1 . 2 . Terminal Hacks 64 | . 10 . 5 . 6 1 8 . . 2 . . 2 1 2 . . 1 . . 2 2 1 . 1 4 . . . . 1 . 2 1 1 2 6 3 Record 4 | . . . 4 . . . . . . . . . . . . . . . . . . . . . . . . . . . . . . . . . . . Part Schematic 1 | . 1 . . . . . . . . . . . . . . . . . . . . . . . . . . . . . . . . . . . . . Robot Analysis 7 | . 6 . . . 1 . . . . . . . . . . . . . . . . . . . . . . . . . . . . . . . . . Prototype ID Bank 2 | . . . . . 1 . 1 . . . . . . . . . . . . . . . . . . . . . . . . . . . . . . . Open Door 10 | . . . . . . 1 . . . . . . . 1 2 . . . . . . . 1 . . . . . . . . . . . . 1 3 1 Level Access Points 2 | . . . . . . . . . . . . . . . . . . . . . . . . . . . . . . . . . . . 1 . 1 . Branch Access Points 2 | . . . . . . . . . . . . . . . . . . . . . . . . . . 1 . . . . . . . . . . 1 . Emergency Access Points 5 | . . . . . . . . . . 1 . . . . . . . . . . 1 . . . 1 . . . . . . . . 1 . 1 . . Terminal Index 2 | . . . . . 1 . 1 . . . . . . . . . . . . . . . . . . . . . . . . . . . . . . . Fabricator Index 1 | . . . . . . . . . . . . . . . . . . . . . . . . . . . . . . . . . 1 . . . . . Repair Station Index 1 | . . . . . . . . . . . . . . . . . . . . . . . . . . . . . . . 1 . . . . . . . Recycling Unit Index 1 | . . . . . . . . . . . . . . . . . . . . . . . . . . 1 . . . . . . . . . . . . Garrison Index 1 | . . . . . . . . . . . . . . . . . . . . . . . . . . . . . . . . . 1 . . . . . Alert Level 2 | . . . . . . . 2 . . . . . . . . . . . . . . . . . . . . . . . . . . . . . . . Unreport Threat 2 | . . . . . 1 . . . . . . . . . . . . . . . . . . . . 1 . . . . . . . . . . . . Locate Traps 7 | . 2 . . . . . 1 . . . . . 2 . . . . 1 . . . . . . . . . . . . . . . . . . . 1 Security Status 1 | . . . . . . . 1 . . . . . . . . . . . . . . . . . . . . . . . . . . . . . . . Garrison Status 1 | . . . . . . . 1 . . . . . . . . . . . . . . . . . . . . . . . . . . . . . . . Hauler Manifests 2 | . . . . . 1 . 1 . . . . . . . . . . . . . . . . . . . . . . . . . . . . . . . Zone Layout 7 | . 1 . . . 1 . . . . . . . . . . . . . . . . 2 . . . 1 . . . . . . . . . . 1 1 Patrol Navigation 2 | . . . . . . . . . . 1 . . . . . . . . . . 1 . . . . . . . . . . . . . . . . . Proto ID Catalog 1 | . . . 1 . . . . . . . . . . . . . . . . . . . . . . . . . . . . . . . . . . . Fabricator Hacks 6 | . . . . . . . . . . . . . . . . . . . . . . . . 1 . 2 . . . . . . 3 . . . . . Load Schematic 4 | . . . . . . . . . . . . . . . . . . . . . . . . 1 . 1 . . . . . . 2 . . . . . Build 2 | . . . . . . . . . . . . . . . . . . . . . . . . . . 1 . . . . . . 1 . . . . . Repair Station Hacks 14 | . 6 . . . 2 . 2 . . . 3 . . . . . . . . . . 1 . . . . . . . . . . . . . . . . Scan Component 7 | . 3 . . . 1 . 1 . . . 2 . . . . . . . . . . . . . . . . . . . . . . . . . . . Repair 6 | . 3 . . . 1 . 1 . . . 1 . . . . . . . . . . . . . . . . . . . . . . . . . . . Refit 1 | . . . . . . . . . . . . . . . . . . . . . . 1 . . . . . . . . . . . . . . . . Recycling Unit Hacks 5 | . 3 . . . . . . . 1 . 1 . . . . . . . . . . . . . . . . . . . . . . . . . . . Retrieve Components 5 | . 3 . . . . . . . 1 . 1 . . . . . . . . . . . . . . . . . . . . . . . . . . . Scanalyzer 15 | . . . . . . . 9 . . . . . . . . . . . . . . 6 . . . . . . . . . . . . . . . . Insert Component 4 | . . . . . . . 3 . . . . . . . . . . . . . . 1 . . . . . . . . . . . . . . . . Analyze 4 | . . . . . . . 3 . . . . . . . . . . . . . . 1 . . . . . . . . . . . . . . . . Retrieve Study 7 | . . . . . . . 3 . . . . . . . . . . . . . . 4 . . . . . . . . . . . . . . . . Garrison Access Hacks 15 | . . . . . 1 . 1 . 1 . 1 . 1 . . . . 1 . 2 . 1 . 1 . . . . . . 1 . 1 . 1 . 2 . Unlock Access 11 | . . . . . 1 . 1 . 1 . 1 . . . . . . 1 . 1 . 1 . 1 . . . . . . 1 . 1 . 1 . . . Seal Access 4 | . . . . . . . . . . . . . 1 . . . . . . 1 . . . . . . . . . . . . . . . . 2 . Unauthorized Hacks 52 | . 11 . . . 11 . 7 . 1 . 2 . 1 . . . . 3 . . . 1 . 2 . 2 . . . . 2 . 3 . 2 . 2 2 Terminals 46 | . 9 . . . 11 . 7 . 1 . 2 . 1 . . . . 3 . . . 1 . . . 2 . . . . 2 . 1 . 2 . 2 2 Assimilate 2 | . . . . . . . . . . . . . . . . . . 1 . . . . . . . . . . . . . . . . . . . 1 Botnet 20 | . 3 . . . 2 . 1 . 1 . 2 . 1 . . . . 1 . . . 1 . . . 2 . . . . 2 . 1 . 2 . 1 . Disrupt 3 | . . . . . 1 . . . . . . . . . . . . . . . . . . . . . . . . . . . . . . . 1 1 Operators 4 | . 1 . . . 1 . 1 . . . . . . . . . . 1 . . . . . . . . . . . . . . . . . . . . Skim 17 | . 5 . . . 7 . 5 . . . . . . . . . . . . . . . . . . . . . . . . . . . . . . . Fabricators 3 | . . . . . . . . . . . . . . . . . . . . . . . . 1 . . . . . . . . 2 . . . . . Prioritize 1 | . . . . . . . . . . . . . . . . . . . . . . . . . . . . . . . . . 1 . . . . . Recompile 2 | . . . . . . . . . . . . . . . . . . . . . . . . 1 . . . . . . . . 1 . . . . . Repair Stations 1 | . . . . . . . . . . . . . . . . . . . . . . . . 1 . . . . . . . . . . . . . . Mechanics 1 | . . . . . . . . . . . . . . . . . . . . . . . . 1 . . . . . . . . . . . . . . Recycling Units 2 | . 2 . . . . . . . . . . . . . . . . . . . . . . . . . . . . . . . . . . . . . Tunnel 2 | . 2 . . . . . . . . . . . . . . . . . . . . . . . . . . . . . . . . . . . . . Scanalyzers . | . . . . . . . . . . . . . . . . . . . . . . . . . . . . . . . . . . . . . . . Garrison Access . | . . . . . . . . . . . . . . . . . . . . . . . . . . . . . . . . . . . . . . . Data Cores Recovered . | . . . . . . . . . . . . . . . . . . . . . . . . . . . . . . . . . . . . . . . Used . | . . . . . . . . . . . . . . . . . . . . . . . . . . . . . . . . . . . . . . . Hacking Detections 92 | . 9 . . . 7 2 11 4 2 2 4 . 6 . . . . 8 . . . 8 . 3 2 6 . . . . 4 . 3 1 2 1 4 3 Full Trace Events 4 | . . . . . . . . 1 . . . . . . . . . . . . . . . . . 1 . . . . 1 . . . . . . 1 Feedback Events 1 | . . . . . . . . . . . . . . . . . . . . . . . . . . . . . . . . . . . . . . 1 Corruption 1 | . . . . . . . . . . . . . . . . . . . . . . . . . . . . . . . . . . . . . . 1 Feedback Blocked . | . . . . . . . . . . . . . . . . . . . . . . . . . . . . . . . . . . . . . . . Robot Schematics Acquired . | . . . . . . . . . . . . . . . . . . . . . . . . . . . . . . . . . . . . . . . Robots Built . | . . . . . . . . . . . . . . . . . . . . . . . . . . . . . . . . . . . . . . . Authchips . | . . . . . . . . . . . . . . . . . . . . . . . . . . . . . . . . . . . . . . . Time . | . . . . . . . . . . . . . . . . . . . . . . . . . . . . . . . . . . . . . . . Total Robot Build Rating . | . . . . . . . . . . . . . . . . . . . . . . . . . . . . . . . . . . . . . . . Part Schematics Acquired 4 | . 1 . . . . . 2 . . . . . . . . . . . . . . 1 . . . . . . . . . . . . . . . . Parts Built 3 | . . . . . . . . . . . . . . . . . . . . . . . . . . 2 . . . . . . 1 . . . . . Authchips 2 | . . . . . . . . . . . . . . . . . . . . . . . . . . 1 . . . . . . 1 . . . . . Time 71 | . . . . . . . . . . . . . . . . . . . . . . . . . . 36 . . . . . . 35 . . . . . Total Part Build Rating 12 | . . . . . . . . . . . . . . . . . . . . . . . . . . 6 . . . . . . 6 . . . . . Part Studies Acquired 7 | . . . . . . . 3 . . . . . . . . . . . . . . 4 . . . . . . . . . . . . . . . . Parts Repaired 6 | . 3 . . . 1 . 1 . . . 1 . . . . . . . . . . . . . . . . . . . . . . . . . . . Time 186 | . 84 . . . 32 . 32 . . . 38 . . . . . . . . . . . . . . . . . . . . . . . . . . . Parts Recycled . | . . . . . . . . . . . . . . . . . . . . . . . . . . . . . . . . . . . . . . . Recycled Matter . | . . . . . . . . . . . . . . . . . . . . . . . . . . . . . . . . . . . . . . . Retrieved Matter . | . . . . . . . . . . . . . . . . . . . . . . . . . . . . . . . . . . . . . . . Retrieved Components 19 | . 17 . . . . . . . 2 . . . . . . . . . . . . . . . . . . . . . . . . . . . . . Parts Scanalyzed 3 | . . . . . . . 2 . . . . . . . . . . . . . . 1 . . . . . . . . . . . . . . . . Part Schematics Acquired 3 | . . . . . . . 2 . . . . . . . . . . . . . . 1 . . . . . . . . . . . . . . . . Parts Damaged . | . . . . . . . . . . . . . . . . . . . . . . . . . . . . . . . . . . . . . . . Bothacking | -11 -10 -10 -10 -9 -8 -8 -8 -8 -7 -7 -7 -7 -7 -7 -7 -7 -6 -6 -6 -5 -5 -5 -5 -4 -4 -4 -4 -4 -4 -3 -3 -3 -3 -3 -2 -2 -1 -1 ------------ Run | Yrd Mat Min Exi Min Mat Gar Mat Gar Fac Gar Fac Gar Fac Low Low Zio Pro Fac Gar Fac Gar Fac Gar Fac Gar Fac Upp Upp War Pro Res Gar Res Gar Res Gar Acc Com Used RIF Installer 8 | . . . . . . 1 . 1 . . . 1 . . . . . . 1 . 1 . 1 . 1 . . . . . . . . . . 1 . . Hotswap 1 | . . . . . . . . . . . . . . . . . . . . . . . . . 1 . . . . . . . . . . . . . Zone Cloak 1 | . . . . . . . . . . . . . . . . . . . . . . . 1 . . . . . . . . . . . . . . . Robot Detection 1 | . . . . . . . . . . . . . . . . . . . . . 1 . . . . . . . . . . . . . . . . . Patrol Navigation 1 | . . . . . . . . . . . . 1 . . . . . . . . . . . . . . . . . . . . . . . . . . Alert ID Control 1 | . . . . . . . . . . . . . . . . . . . 1 . . . . . . . . . . . . . . . . . . . Program Shield 1 | . . . . . . . . 1 . . . . . . . . . . . . . . . . . . . . . . . . . . . . . . Crosswire 1 | . . . . . . . . . . . . . . . . . . . . . . . . . . . . . . . . . . . . 1 . . Robots Hacked 99 | . . . . . . . 1 4 2 3 2 12 4 1 . . 1 4 6 . 10 8 3 5 7 2 . 4 . . . 3 2 1 1 . 11 2 Non-combat 34 | . . . . . . . 1 . 2 . 2 . 4 1 . . 1 4 1 . . 4 . 5 . 2 . 1 . . . . 2 . 1 . 3 . Combat 65 | . . . . . . . . 4 . 3 . 12 . . . . . . 5 . 10 4 3 . 7 . . 3 . . . 3 . 1 . . 8 2 Robot Hacks Applied 122 | . . . . . . . 5 5 3 4 4 15 6 1 . . 1 5 7 . 11 10 3 5 7 2 . 5 . . . 5 2 1 2 . 11 2 parse_system 1 | . . . . . . . . . . . . . . 1 . . . . . . . . . . . . . . . . . . . . . . . . find_chute 1 | . . . . . . . . . . . . . . . . . . . . . . . . 1 . . . . . . . . . . . . . . ignore_repairs 3 | . . . . . . . . . . . . . . . . . . 3 . . . . . . . . . . . . . . . . . . . . map_walls 9 | . . . . . . . . . . . . . 2 . . . . . . . . 2 . 3 . 2 . . . . . . . . . . . . map_earth 5 | . . . . . . . . . 1 . 1 . 1 . . . . . . . . 1 . . . . . . . . . . . . . . 1 . purge_threat 4 | . . . . . . . 3 . . . 1 . . . . . . . . . . . . . . . . . . . . . . . . . . . block_reporting 8 | . . . . . . . 1 . 1 . 1 . 1 . . . . 1 . . . 1 . . . . . . . . . . 1 . 1 . . . map_route 3 | . . . . . . . . . . . . . . . . . . 1 . . . . . . . . . . . . . . . . . . 2 . find_garrison 1 | . . . . . . . . . . . . . . . . . . . . . . 1 . . . . . . . . . . . . . . . . reboot_propulsion 1 | . . . . . . . . . . . . . . . . . . . . . . . . . . . . . . . . . . 1 . . . . scatter_targeting 2 | . . . . . . . . . . . . . . . . . . . . . 1 . . . . . . 1 . . . . . . . . . . disrupt_area 1 | . . . . . . . . . . . . . . . . . . . . . 1 . . . . . . . . . . . . . . . . . spike_heat 4 | . . . . . . . . 1 . 1 . 1 . . . . . . . . . . . . . . . 1 . . . . . . . . . . amplify_resonance 9 | . . . . . . . . 1 . . . 2 . . . . . . . . 4 . . . . . . . . . . . . . . . 2 . reboot_system 8 | . . . . . . . . . . . . . . . . . . . 1 . . . 1 . 2 . . . . . . 3 . . . . 1 . go_dormant 3 | . . . . . . . . . . . . 2 . . . . . . 1 . . . . . . . . . . . . . . . . . . . overwrite_iff 10 | . . . . . . . . . . 1 . 3 . . . . . . . . 3 . . . . . . 1 . . . 1 . . . . 1 . streamctrl_low 1 | . . . . . . . . . . . . . . . . . . . . . . . . . . . . . . . . . . . 1 . . . streamctrl_high 3 | . . . . . . . . . . . . 3 . . . . . . . . . . . . . . . . . . . . . . . . . . formatsys_low 11 | . . . . . . . 1 . 1 . 1 . 2 . . . 1 . 1 . . 1 . 1 . . . 1 . . . . 1 . . . . . formatsys_high 34 | . . . . . . . . 3 . 2 . 4 . . . . . . 4 . 2 4 2 . 5 . . 1 . . . 1 . . . . 4 2 Relay Couplers Released 103 | . . . . . . 3 . 16 . 17 . 10 . . . . . . 8 . 8 . 7 . 6 . . . . . . 5 . 3 . 20 . . Machine Destruction 100 | . . . . . . . . 16 . 17 . 10 . . . . . . 8 . 8 . 7 . 6 . . . . . . 5 . 3 . 20 . . Programmers 3 | . . . . . . 3 . . . . . . . . . . . . . . . . . . . . . . . . . . . . . . . . Attached 52 | . . . . . . . 2 2 2 4 . 7 . . . 1 . . 7 . 7 . 5 . 4 . . . . . . 1 . . . 7 . 3 Crosswired 8 | . . . . . . . . . . . . . . . . . . . . . . . . . . . . . . . . . . . . 8 . . Fabnet Peak Effective % . | . . . . . . . . . . . . . . . . . . . . . . . . . . . . . . . . . . . . . . . Robots Rewired 11 | . . . . . . 1 . . . . . . . . . . . . . 2 . . . . . . . . . . . . . . . 8 . . Allies Hacked . | . . . . . . . . . . . . . . . . . . . . . . . . . . . . . . . . . . . . . . . Hacks Repelled . | . . . . . . . . . . . . . . . . . . . . . . . . . . . . . . . . . . . . . . . Allies | -11 -10 -10 -10 -9 -8 -8 -8 -8 -7 -7 -7 -7 -7 -7 -7 -7 -6 -6 -6 -5 -5 -5 -5 -4 -4 -4 -4 -4 -4 -3 -3 -3 -3 -3 -2 -2 -1 -1 -------- Run | Yrd Mat Min Exi Min Mat Gar Mat Gar Fac Gar Fac Gar Fac Low Low Zio Pro Fac Gar Fac Gar Fac Gar Fac Gar Fac Upp Upp War Pro Res Gar Res Gar Res Gar Acc Com Total Allies 82 | . . 4 . . . 3 1 4 1 2 1 10 2 . . . 1 1 5 2 5 5 4 1 5 . . 3 . . . 2 1 . 1 10 5 3 Largest Group 10 | . . 3 3 . . 2 1 3 4 4 1 3 2 2 2 1 1 2 5 7 8 6 3 2 6 5 . 2 2 . . 2 1 . 1 10 6 2 Highest-Rated Group 483 | . . 76 76 . . 45 10 48 69 69 10 85 49 49 49 23 23 33 128 197 235 163 108 33 320 264 . 103 89 . . 128 23 . 26 483 375 427 Highest-Rated Ally 215 | . . 31 31 . . 25 10 31 26 32 10 85 26 26 26 23 23 23 32 49 49 49 49 23 68 68 . 56 56 . . 64 23 . 26 95 183 215 Total Orders 144 | . . . . . . . 4 1 . 3 . 6 3 4 4 . . 4 24 4 30 22 7 6 12 1 . 1 1 . . . 2 . . . 4 1 STAY 80 | . . . . . . . 2 1 . 2 . 5 1 2 2 . . 2 10 2 16 13 4 3 8 1 . 1 1 . . . 1 . . . 2 1 ROAM 1 | . . . . . . . . . . . . . . . . . . . 1 . . . . . . . . . . . . . . . . . . . FOLLOW 50 | . . . . . . . 2 . . 1 . 1 1 2 2 . . 2 10 2 11 8 3 2 3 . . . . . . . . . . . . . AID 12 | . . . . . . . . . . . . . 1 . . . . . 2 . 3 1 . 1 1 . . . . . . . 1 . . . 2 . DROP 1 | . . . . . . . . . . . . . . . . . . . 1 . . . . . . . . . . . . . . . . . . . Ally Attacks 295 | . . 5 . . . 5 . 5 . 24 . 44 . . . . . . 26 . 51 6 17 . 10 . . 7 2 . . 10 . . . . 77 6 Total Damage 9467 | . . 20 . . . 169 . 65 . 360 . 880 . . . . . . 797 . 1435 103 414 . 513 . . 211 90 . . 434 . . . . 3274 702 Kills 59 | . . . . . . 2 . 1 . 1 . 7 . . . . . . 11 . 12 . 4 . 4 . . 3 . . . 1 . . . . 13 . Allies Corrupted 6 | . . . . . . . . . . . . . . . . . . . . . . . . . . . . . 1 . . . . . . . 3 2 Allies Melted . | . . . . . . . . . . . . . . . . . . . . . . . . . . . . . . . . . . . . . . . Intel | -11 -10 -10 -10 -9 -8 -8 -8 -8 -7 -7 -7 -7 -7 -7 -7 -7 -6 -6 -6 -5 -5 -5 -5 -4 -4 -4 -4 -4 -4 -3 -3 -3 -3 -3 -2 -2 -1 -1 ------- Run | Yrd Mat Min Exi Min Mat Gar Mat Gar Fac Gar Fac Gar Fac Low Low Zio Pro Fac Gar Fac Gar Fac Gar Fac Gar Fac Upp Upp War Pro Res Gar Res Gar Res Gar Acc Com Active Infowar (turns) 17095 | 62 1533 867 463 . . . . . 143 661 261 655 330 591 403 59 121 422 1170 231 1013 636 744 422 838 344 259 309 1480 384 472 333 312 141 213 539 505 179 Sensors 3693 | . . . 1 . . . . . . . . . . 590 402 57 118 4 . . . . . . . . 258 309 1480 384 90 . . . . . . . Traps 318 | . . . . . . . . . 136 182 . . . . . . . . . . . . . . . . . . . . . . . . . . . . Seismic 2924 | 62 1533 867 462 . . . . . . . . . . . . . . . . . . . . . . . . . . . . . . . . . . . T.N.C. 14159 | . . . . . . . . . 132 661 261 655 330 591 403 59 121 422 1170 231 1013 636 744 422 838 344 259 309 1480 384 472 333 312 141 213 539 505 179 ECM 1 | . . . . . . . . . 1 . . . . . . . . . . . . . . . . . . . . . . . . . . . . . Robot Analysis Total 6 | . 5 . . . 1 . . . . . . . . . . . . . . . . . . . . . . . . . . . . . . . . . Derelict Logs Recovered 8 | . . . . 1 . . . . . . . . . 1 . . 2 . . . . . . . . . 2 2 . . . . . . . . . . Drone Launches . | . . . . . . . . . . . . . . . . . . . . . . . . . . . . . . . . . . . . . . . Drone Recoveries . | . . . . . . . . . . . . . . . . . . . . . . . . . . . . . . . . . . . . . . . Exploration | -11 -10 -10 -10 -9 -8 -8 -8 -8 -7 -7 -7 -7 -7 -7 -7 -7 -6 -6 -6 -5 -5 -5 -5 -4 -4 -4 -4 -4 -4 -3 -3 -3 -3 -3 -2 -2 -1 -1 ------------- Run | Yrd Mat Min Exi Min Mat Gar Mat Gar Fac Gar Fac Gar Fac Low Low Zio Pro Fac Gar Fac Gar Fac Gar Fac Gar Fac Upp Upp War Pro Res Gar Res Gar Res Gar Acc Com Turns Passed 30118 | 279 1686 962 1007 1046 3342 2399 3279 1851 152 661 261 655 330 591 403 59 121 422 1170 231 1013 636 744 422 838 344 259 309 1480 384 472 333 312 141 213 539 505 267 Spaces Moved 30771 | 112 714 315 571 529 1117 853 1168 791 213 918 660 1072 873 1432 1006 209 313 897 1668 498 1484 1267 1365 852 1620 762 783 687 357 784 1017 468 538 161 413 1025 918 341 Core 20 | 6 3 . . . . . . . . . . . . . . . . . . . . . . . . . . . . . . . . . . . . 11 Treads 4171 | 103 168 . . . 1087 853 1168 791 1 . . . . . . . . . . . . . . . . . . . . . . . . . . . . . Legs . | . . . . . . . . . . . . . . . . . . . . . . . . . . . . . . . . . . . . . . . Wheels 1991 | 3 543 315 571 529 30 . . . . . . . . . . . . . . . . . . . . . . . . . . . . . . . . . Hover . | . . . . . . . . . . . . . . . . . . . . . . . . . . . . . . . . . . . . . . . Flight 24589 | . . . . . . . . . 212 918 660 1072 873 1432 1006 209 313 897 1668 498 1484 1267 1365 852 1620 762 783 687 357 784 1017 468 538 161 413 1025 918 330 Fastest Speed 26 | 50 160 175 175 175 175 240 200 200 26 26 26 26 26 26 26 26 26 26 26 26 26 26 27 27 30 27 30 30 27 30 27 30 32 28 32 34 34 34 Average Speed 63 | 155 172 175 175 175 238 240 210 200 29 26 26 26 26 26 26 26 26 26 26 26 26 26 27 29 30 29 30 30 29 30 29 31 32 30 33 34 34 36 Slowest Speed 376 | 160 320 175 175 175 240 240 240 200 376 96 26 26 26 26 26 26 26 26 32 26 32 27 100 30 30 30 30 30 30 30 30 34 32 40 40 34 34 107 Overloaded Moves 72 | . . . . . . . . . . . . . . . . . . . . . . . . 4 . 3 . . 10 . 3 . . 52 . . . . Propulsion Burnouts . | . . . . . . . . . . . . . . . . . . . . . . . . . . . . . . . . . . . . . . . Robots Hopped 36 | . . . . . . . . . . . . 4 4 . . . . 1 1 1 . 1 . 2 1 5 . . 1 . 1 . 2 4 1 . 5 2 Potential Cave-ins 13 | . . . . . . . . . . 13 . . . . . . . . . . . . . . . . . . . . . . . . . . . . Cave-ins Triggered . | . . . . . . . . . . . . . . . . . . . . . . . . . . . . . . . . . . . . . . . Exploration Rate (%) 49 | 5 97 62 90 93 75 86 73 88 5 68 17 63 23 93 75 14 43 19 65 10 66 30 76 16 74 23 80 69 17 73 21 31 14 28 16 97 28 15 Regions Visited 38 Branch Regions 12 Pre-discovered Areas 8 | . 2 . 1 . 1 . 2 . . . . . . . . . 1 . . . . . . . . . 1 . . . . . . . . . . . Known Exits Taken 23 | . . 1 . . 1 . 1 . 1 . 1 . 1 1 1 1 1 1 . 1 . 1 . 1 . 1 1 1 1 1 1 . 1 . 1 . 1 . Unknown Exits Taken 4 | 1 1 . 1 1 . . . . . . . . . . . . . . . . . . . . . . . . . . . . . . . . . . Scrap Searched 23 | . . 1 . 2 . . . . . . . . . 5 4 . 4 . . . . . . . . . 2 2 . 3 . . . . . . . . Spaces Dug 556 | . 10 11 . 22 11 20 1 55 2 28 15 35 13 28 . . . 8 72 1 17 25 10 14 9 22 7 1 27 3 32 3 14 1 1 1 21 16 Terrain Destroyed 1820 | . 15 91 . 58 31 114 13 79 2 63 15 37 13 30 . . . 8 112 1 22 25 276 14 125 22 7 1 200 3 32 189 14 166 1 1 21 19 Melee 285 | . . . . . . . 1 4 2 11 15 8 13 19 . . . 8 16 1 8 25 10 14 9 22 7 1 2 3 32 3 14 1 1 1 21 13 Projectile 44 | . 15 . . . 12 . . . . . . . . 11 . . . . . . . . . . . . . . . . . . . . . . . 6 AOE 1491 | . . 91 . 58 19 114 12 75 . 52 . 29 . . . . . . 96 . 14 . 266 . 116 . . . 198 . . 186 . 165 . . . . Terrain Rammed . | . . . . . . . . . . . . . . . . . . . . . . . . . . . . . . . . . . . . . . . Walls Destroyed . | . . . . . . . . . . . . . . . . . . . . . . . . . . . . . . . . . . . . . . . Machines Disabled . | . . . . . . . . . . . . . . . . . . . . . . . . . . . . . . . . . . . . . . . Actions | -11 -10 -10 -10 -9 -8 -8 -8 -8 -7 -7 -7 -7 -7 -7 -7 -7 -6 -6 -6 -5 -5 -5 -5 -4 -4 -4 -4 -4 -4 -3 -3 -3 -3 -3 -2 -2 -1 -1 --------- Run | Yrd Mat Min Exi Min Mat Gar Mat Gar Fac Gar Fac Gar Fac Low Low Zio Pro Fac Gar Fac Gar Fac Gar Fac Gar Fac Upp Upp War Pro Res Gar Res Gar Res Gar Acc Com Total 39030 | 159 1031 709 582 628 1616 1019 1853 973 299 1211 716 1379 940 1591 1144 211 341 1033 2260 581 1984 1519 1659 980 1871 834 792 784 1707 917 1125 609 633 229 448 1177 1050 436 Wait 5629 | . 180 379 . 77 277 3 525 37 39 189 24 194 42 101 135 . 18 91 430 64 349 168 105 65 129 29 . 90 1320 120 46 67 57 43 10 89 81 56 Move 30669 | 111 713 314 570 528 1116 852 1167 790 212 917 660 1063 864 1431 1005 208 312 895 1665 496 1483 1265 1364 847 1617 750 782 686 354 783 1015 466 534 153 411 1024 908 338 Hop 33 | . . . . . . . . . . . . 4 4 . . . . 1 1 1 . 1 . 2 1 5 . . 1 . 1 . 2 3 1 . 4 1 Pick Up 179 | 8 27 3 5 1 33 7 12 7 1 5 . 6 1 3 . 1 1 . 11 . 6 4 3 . 7 . . . 2 1 . 5 4 1 3 11 . . Fast Attach 125 | 7 10 . . . 5 . 3 5 4 3 5 4 . 2 1 . . 4 11 4 10 3 11 3 6 4 . . . . 5 2 1 . 2 5 5 . Attach 92 | 1 7 . . 2 6 2 4 1 10 1 . 1 . 1 . . . 1 1 . 5 . 12 . 6 . . . 3 2 . 12 4 2 2 2 . 4 Detach 33 | 1 1 . . . . . . . 1 1 . . . . . . . 1 . . 1 . 9 . 5 . . . 2 . . 9 . 1 . . . 1 Swap 235 | 1 13 4 1 6 35 31 25 32 1 11 . 16 2 7 1 2 1 . 19 2 3 3 1 1 5 . 1 . . 1 2 . 3 . . 1 . 4 Drop 262 | . 12 1 6 1 44 17 15 18 21 7 4 9 2 4 1 . 1 4 16 2 4 10 13 3 12 3 . . 2 1 4 5 2 2 1 12 3 . Fire 814 | 30 68 7 . 13 100 97 99 53 5 12 6 37 8 13 . . 2 9 19 5 25 14 43 5 28 2 . 6 18 . . 28 3 16 2 14 15 12 Melee 666 | . . . . . . . 3 14 5 65 17 22 16 25 1 . 6 27 63 7 56 34 28 24 52 24 9 2 3 9 37 15 23 2 16 19 25 17 Ram 2 | . . . . . . . . . . . . . . . . . . . . . . . . . . . . . . . . . . . . . . 2 Kick . | . . . . . . . . . . . . . . . . . . . . . . . . . . . . . . . . . . . . . . . Crush 1 | . . 1 . . . . . . . . . . . . . . . . . . . . . . . . . . . . . . . . . . . . Escape Stasis 263 | . . . . . . 8 . 16 . . . 23 . . . . . . 15 . 42 15 69 30 . 17 . . . . 15 . . 4 . . 9 . Rewire 10 | . . . . . . 1 . . . . . . 1 . . . . . 1 . . 2 1 . 3 . . . . . . . . . . . . 1 Trap 17 | . . . . . . 1 . . . . . . . 4 . . . . 8 . . . . . . . . . 2 . . . . 2 . . . . Miscellaneous . | . . . . . . . . . . . . . . . . . . . . . . . . . . . . . . . . . . . . . . . Route ------- -11/Scrapyard -10/Materials (discovered 6 exits: *Mat x3 / [*Min x2] / [*Sub]) -10/Mines (discovered 3 exits: *Mat x2 / *Exi) -10/Exiles (discovered 2 exits: [*Min x2]) -9/Mines (discovered 2 exits: *Mat x2) -8/Materials (discovered 4 exits: *Fac x3 / Gar) -8/Garrison (discovered 3 exits: *Mat x3) -8/Materials (discovered 4 exits: *Fac x3 / Gar) -8/Garrison (discovered 3 exits: *Fac x3) -7/Factory (discovered 7 exits: Fac x4 / Sto / Low / Gar) -7/Garrison (discovered 2 exits: *Fac x2) -7/Factory -7/Garrison (discovered 3 exits: *Fac x3) -7/Factory (discovered 4 exits: *Fac x2 / *Low x2) -7/Lower Caves -7/Lower Caves (discovered 2 exits: *Fac / *Zio) -7/Zion -6/Proximity Caves -6/Factory (discovered 2 exits: *Fac / Gar) -6/Garrison (discovered 2 exits: *Fac x2) -5/Factory (discovered 2 exits: *Upp / Gar) -5/Garrison (discovered 2 exits: *Fac x2) -5/Factory (discovered 2 exits: *Fac / Gar) -5/Garrison (discovered 3 exits: *Fac x3) -4/Factory (discovered 2 exits: *Upp / Gar) -4/Garrison (discovered 3 exits: *Fac x3) -4/Factory (discovered 4 exits: *Res / *Upp x2 / Arm) -4/Upper Caves (discovered 2 exits: *Upp / *War) -4/Upper Caves (discovered 2 exits: *Res / *War) -4/Warlord -3/Proximity Caves -3/Research (discovered 2 exits: Tes / Gar) -3/Garrison -3/Research -3/Garrison -2/Research (discovered 4 exits: Acc x3 / Gar) -2/Garrison (discovered 3 exits: *Acc x3) -1/Access (discovered 2 exits: Sur / *Com) -1/Command History --------- Turn | Location | Event 34 | -11/Scrapyard | Discovered new exit (range 16) 280 | -11/Scrapyard | Entered Materials 280 | -10/Materials | Discovered new exit (range 8) 300 | -10/Materials | Build established: Mutant 506 | -10/Materials | Discovered new exit (range 14) 825 | -10/Materials | Discovered new exit (range 16) 1059 | -10/Materials | Discovered new exit (range 15) 1191 | -10/Materials | Discovered new exit (range 9) 1230 | -10/Materials | Learned 2 Mines zone layouts 1246 | -10/Materials | Discovered new exit (range 7) 1296 | -10/Materials | Loaded intel: 2 recycling unit locations 1313 | -10/Materials | Loaded intel: 17 trap records 1319 | -10/Materials | Learned location of 2 exits from Materials 1335 | -10/Materials | Loaded intel: 1 repair station location 1362 | -10/Materials | Learned Storage emergency access door positions 1444 | -10/Materials | Repaired Particle Gun 1471 | -10/Materials | Repaired Lgt. Assault Rifle 1500 | -10/Materials | Repaired Lgt. Treads 1966 | -10/Materials | Entered Mines 1967 | -10/Mines | Met a Derelict testing a Signal Generator 1967 | -10/Mines | Identified exit to Exiles 1967 | -10/Mines | Identified exit to Materials 2194 | -10/Mines | Core integrity fell below 50% 2682 | -10/Mines | Found a damaged Exp. Sensor Array with a note attached 2686 | -10/Mines | Found Prototype Device 2806 | -10/Mines | Escorted by a lone wolf Derelict 2908 | -10/Mines | Deemed a non-threat by the Exiles lab entrance 2928 | -10/Mines | Entered Exiles 2928 | -10/Exiles | Accompanied by 3 allies 2958 | -10/Exiles | Led the pair of lost Derelicts to a safe place 2970 | -10/Exiles | Met 8R-AWN 3000 | -10/Exiles | Met EX-HEX 3049 | -10/Exiles | Met EX-BIN 3119 | -10/Exiles | Learned location of Zion (-7) 3172 | -10/Exiles | Aligned with FarCom system 3173 | -10/Exiles | Given EX-Vault access code 3214 | -10/Exiles | Opened EX-Vault 3227 | -10/Exiles | Found Modified TNC 3259 | -10/Exiles | Warned to stay clear of 0b10 Research branches 3390 | -10/Exiles | Identified Exp. Sensor Array 3438 | -10/Exiles | Discovered new exit (range 14) 3603 | -10/Exiles | Met EX-DEC 3630 | -10/Exiles | Visited The Gauntlet 3920 | -10/Exiles | Discovered new exit (range 10) 3935 | -10/Exiles | Left Exiles lab with Modified TNC 3935 | -10/Exiles | Entered Mines 4336 | -9/Mines | Assembled infested the area 4623 | -9/Mines | Learned Materials stockpile data 4897 | -9/Mines | Discovered new exit (range 8) 4960 | -9/Mines | Discovered new exit (range 11) 4981 | -9/Mines | Entered Materials 4981 | -8/Materials | Evolved 4 slots: Propulsion x2, Utility x2 4982 | -8/Materials | Identified exit to Factory 5350 | -8/Materials | Build established: Scavenger-Mutant 5794 | -8/Materials | Repaired Rocket Launcher 6624 | -8/Materials | Learned location of 1 exit from Extension 6677 | -8/Materials | Learned 4 Lower Caves zone layouts 6678 | -8/Materials | Learned location of 1 exit from Recycling 6681 | -8/Materials | Learned location of Extension (-6) 8311 | -8/Materials | Identified exit to Garrison 8323 | -8/Materials | Entered Garrison 8393 | -8/Garrison | Triggered checkpoint 8810 | -8/Garrison | Triggered checkpoint 8813 | -8/Garrison | Triggered checkpoint 8857 | -8/Garrison | Destroyed 7 combat bots 8977 | -8/Garrison | Discovered new exit (range 12) 9207 | -8/Garrison | Triggered checkpoint 9445 | -8/Garrison | Rescued a captive Derelict 9445 | -8/Garrison | Rescued a captive Derelict 9739 | -8/Garrison | Triggered checkpoint 9757 | -8/Garrison | Triggered checkpoint 9967 | -8/Garrison | Triggered checkpoint 10066 | -8/Garrison | Discovered new exit (range 12) 10662 | -8/Garrison | Discovered new exit (range 10) 10688 | -8/Garrison | Installed Relay Interface Framework 10722 | -8/Garrison | Entered Materials 11122 | -8/Materials | First assault squad dispatched 13517 | -8/Materials | Learned location of 3 exits from Factory 13967 | -8/Materials | Repaired Hrd. Light Armor Plating 13992 | -8/Materials | Identified exit to Garrison 14001 | -8/Materials | Entered Garrison 14001 | -8/Garrison | Accompanied by 1 ally 14211 | -8/Garrison | Garrison Relay disabled 14521 | -8/Garrison | Triggered checkpoint 14615 | -8/Garrison | Triggered checkpoint 14874 | -8/Garrison | Garrison Relay disabled 15302 | -8/Garrison | Garrison Relay disabled 15522 | -8/Garrison | Rescued a captive Derelict 15522 | -8/Garrison | Rescued a captive Derelict 15665 | -8/Garrison | Garrison Relay disabled 15791 | -8/Garrison | Expanded RIF knowledge: Program Shield 15852 | -8/Garrison | Entered Factory 15852 | -7/Factory | Accompanied by 3 allies 15852 | -7/Factory | Evolved 2 slots: Utility x2 15853 | -7/Factory | Identified exit to Factory 15853 | -7/Factory | Identified exit to Lower Caves 15854 | -7/Factory | Identified exit to Storage 16002 | -7/Factory | Identified exit to Garrison 16004 | -7/Factory | Entered Garrison 16004 | -7/Garrison | Accompanied by 4 allies 16014 | -7/Garrison | Triggered checkpoint 16160 | -7/Garrison | Triggered checkpoint 16165 | -7/Garrison | Triggered checkpoint 16192 | -7/Garrison | Triggered checkpoint 16193 | -7/Garrison | Triggered checkpoint 16208 | -7/Garrison | Discovered new exit (range 12) 16279 | -7/Garrison | Garrison Relay disabled 16286 | -7/Garrison | Triggered checkpoint 16558 | -7/Garrison | Discovered new exit (range 15) 16566 | -7/Garrison | Garrison Relay disabled 16576 | -7/Garrison | Identified exit to Factory 16590 | -7/Garrison | Build established: Sprinter 16649 | -7/Garrison | Garrison Relay disabled 16665 | -7/Garrison | Entered Factory 16736 | -7/Factory | Repaired Imp. Propulsion Shielding 16926 | -7/Factory | Identified exit to Garrison 16926 | -7/Factory | Entered Garrison 16980 | -7/Garrison | Triggered checkpoint 17057 | -7/Garrison | P-60 Hacker assimilated allied Guardian 4c 17079 | -7/Garrison | Spotted B-75 Beast 17142 | -7/Garrison | Triggered checkpoint 17162 | -7/Garrison | Discovered new exit (range 13) 17171 | -7/Garrison | Identified exit to Factory 17175 | -7/Garrison | Triggered checkpoint 17243 | -7/Garrison | Triggered checkpoint 17306 | -7/Garrison | Discovered exit to Factory (range 10) 17319 | -7/Garrison | Triggered checkpoint 17329 | -7/Garrison | Garrison Relay disabled 17368 | -7/Garrison | Triggered checkpoint 17429 | -7/Garrison | Discovered exit to Factory (range 5) 17447 | -7/Garrison | Expanded RIF knowledge: Patrol Navigation 17481 | -7/Garrison | Spotted B-75 Beast 17492 | -7/Garrison | Hijacked Beast 4a control node with streamctrl_high 17581 | -7/Garrison | Entered Factory 17626 | -7/Factory | Discovered exit to Factory (range 16) 17652 | -7/Factory | Discovered exit to Factory (range 16) 17761 | -7/Factory | Discovered exit to Lower Caves (range 6) 17764 | -7/Factory | Discovered exit to Lower Caves (range 9) 17911 | -7/Factory | Entered Lower Caves 17911 | -7/Lower Caves | Accompanied by 2 allies 18143 | -7/Lower Caves | Discovered new exit (range 3) 18144 | -7/Lower Caves | Identified exit to Lower Caves 18205 | -7/Lower Caves | Build established: Scout 18406 | -7/Lower Caves | Found Alien Artifact 18406 | -7/Lower Caves | Identified Core Expander 18406 | -7/Lower Caves | Installed Core Expander, added new Power slot 18502 | -7/Lower Caves | Entered another Lower Caves area 18502 | -7/Lower Caves | Accompanied by 2 allies 18519 | -7/Lower Caves | Entered an active Warlord outpost 18673 | -7/Lower Caves | Discovered new exit (range 14) 18771 | -7/Lower Caves | Discovered exit to Factory (range 11) 18861 | -7/Lower Caves | Identified exit to Zion 18905 | -7/Lower Caves | Entered Zion 18905 | -7/Zion | Accompanied by 1 ally 18925 | -7/Zion | Received a hallucinogenic algorithm 18932 | -7/Zion | Discovered new exit (range 15) 18947 | -7/Zion | RIF detected upon attempting to enter Zion 18947 | -7/Zion | Attacked by Zionites 18947 | -7/Zion | Spotted GU-FNP(B) 18947 | -7/Zion | Spotted 71-0TH(B) 18955 | -7/Zion | Found CR-A16's Pointy Stick 18962 | -7/Zion | Identified exit to Proximity Caves 18964 | -7/Zion | Entered Proximity Caves 18970 | -6/Proximity Caves | Spotter reported a threat 18998 | -6/Proximity Caves | Learned Factory emergency access door positions 19074 | -6/Proximity Caves | Discovered exit to Factory (range 8) 19085 | -6/Proximity Caves | Entered Factory 19085 | -6/Factory | Accompanied by 1 ally 19085 | -6/Factory | Evolved 2 slots: Utility x2 19115 | -6/Factory | Discovered new exit (range 30) 19393 | -6/Factory | Build established: Sprinter 19501 | -6/Factory | Identified exit to Garrison 19507 | -6/Factory | Entered Garrison 19507 | -6/Garrison | Accompanied by 2 allies 19585 | -6/Garrison | Triggered checkpoint 19604 | -6/Garrison | Garrison Relay disabled 19662 | -6/Garrison | Spotted B-75 Beast 19691 | -6/Garrison | Destroyed B-75 Beast 19797 | -6/Garrison | Expanded RIF knowledge: Alert ID Control 19805 | -6/Garrison | Discovered new exit (range 10) 19905 | -6/Garrison | Identified exit to Factory 19936 | -6/Garrison | Triggered checkpoint 19963 | -6/Garrison | Triggered checkpoint 20002 | -6/Garrison | Garrison Relay disabled 20196 | -6/Garrison | Discovered exit to Factory (range 15) 20677 | -6/Garrison | Entered Factory 20677 | -5/Factory | Accompanied by 5 allies 20677 | -5/Factory | Evolved 2 slots: Utility x2 20678 | -5/Factory | Identified exit to Upper Caves 20702 | -5/Factory | Build established: Bothacker-Sprinter 20905 | -5/Factory | Identified exit to Garrison 20908 | -5/Factory | Entered Garrison 20908 | -5/Garrison | Accompanied by 7 allies 21025 | -5/Garrison | Triggered checkpoint 21042 | -5/Garrison | Garrison Relay disabled 21105 | -5/Garrison | Spotted B-75 Beast 21139 | -5/Garrison | Allies destroyed B-75 Beast 21302 | -5/Garrison | Triggered checkpoint 21397 | -5/Garrison | Discovered new exit (range 10) 21408 | -5/Garrison | Triggered checkpoint 21424 | -5/Garrison | Spotted Striker 21430 | -5/Garrison | Triggered checkpoint 21478 | -5/Garrison | Destroyed Striker 21485 | -5/Garrison | Lost 4 allies 21506 | -5/Garrison | Lost 9 parts (2p2n2u3w) 21604 | -5/Garrison | Spotted Striker 21609 | -5/Garrison | Garrison Relay disabled 21801 | -5/Garrison | Expanded RIF knowledge: Robot Detection 21804 | -5/Garrison | Triggered checkpoint 21809 | -5/Garrison | Discovered new exit (range 13) 21831 | -5/Garrison | Identified exit to Factory 21857 | -5/Garrison | H-XX Assembler disabled 21891 | -5/Garrison | Build established: Scavenger-Sprinter 21921 | -5/Garrison | Entered Factory 21921 | -5/Factory | Accompanied by 3 allies 22289 | -5/Factory | Discovered new exit (range 4) 22290 | -5/Factory | Identified exit to Factory 22346 | -5/Factory | Build established: Bothacker-Sprinter 22557 | -5/Factory | Identified exit to Garrison 22557 | -5/Factory | Entered Garrison 22557 | -5/Garrison | Accompanied by 2 allies 22635 | -5/Garrison | Rescued a captive Derelict 22639 | -5/Garrison | Rescued a captive Derelict 22685 | -5/Garrison | Triggered checkpoint 22711 | -5/Garrison | Garrison Relay disabled 22738 | -5/Garrison | Triggered checkpoint 22748 | -5/Garrison | Triggered checkpoint 22750 | -5/Garrison | Spotted B-75 Beast 22786 | -5/Garrison | Destroyed 10 combat bots 22850 | -5/Garrison | Discovered exit to Factory (range 10) 22908 | -5/Garrison | Discovered exit to Factory (range 14) 22973 | -5/Garrison | Triggered checkpoint 22977 | -5/Garrison | Triggered checkpoint 23000 | -5/Garrison | Destroyed 7 combat bots 23050 | -5/Garrison | Expanded RIF knowledge: Zone Cloak 23107 | -5/Garrison | Destroyed 8 combat bots 23114 | -5/Garrison | Discovered exit to Factory (range 10) 23279 | -5/Garrison | Garrison Relay disabled 23301 | -5/Garrison | Entered Factory 23301 | -4/Factory | Accompanied by 1 ally 23301 | -4/Factory | Evolved 2 slots: Utility x2 23404 | -4/Factory | Discovered new exit (range 4) 23405 | -4/Factory | Identified exit to Upper Caves 23578 | -4/Factory | Build established: Botlord-Sprinter 23710 | -4/Factory | Identified exit to Garrison 23723 | -4/Factory | Entered Garrison 23723 | -4/Garrison | Accompanied by 1 ally 23756 | -4/Garrison | Triggered checkpoint 23781 | -4/Garrison | Garrison Relay disabled 23820 | -4/Garrison | Triggered checkpoint 23826 | -4/Garrison | Triggered checkpoint 23837 | -4/Garrison | Spotted B-86 Titan 23854 | -4/Garrison | Destroyed 7 combat bots 23869 | -4/Garrison | Destroyed B-86 Titan 23887 | -4/Garrison | Discovered new exit (range 9) 23891 | -4/Garrison | Expanded RIF knowledge: Hotswap 24279 | -4/Garrison | Garrison Relay disabled 24294 | -4/Garrison | Discovered new exit (range 9) 24429 | -4/Garrison | Triggered checkpoint 24457 | -4/Garrison | Discovered new exit (range 15) 24561 | -4/Garrison | Identified exit to Factory 24561 | -4/Garrison | Entered Factory 24561 | -4/Factory | Accompanied by 5 allies 24633 | -4/Factory | Discovered new exit (range 7) 24635 | -4/Factory | Identified exit to Research 24793 | -4/Factory | Identified exit to Armory 24808 | -4/Factory | Found Unknown Device 24808 | -4/Factory | Identified Quantum Capacitor 24850 | -4/Factory | Fabricated Imp. Propulsion Shielding (x2) 24905 | -4/Factory | Entered Upper Caves 25011 | -4/Upper Caves | Learned location of Testing (-3) 25055 | -4/Upper Caves | A Derelict revealed a hidden shortcut to "reach the base" 25068 | -4/Upper Caves | Discovered new exit (range 2) 25069 | -4/Upper Caves | Identified exit to Upper Caves 25141 | -4/Upper Caves | Identified exit to Warlord 25164 | -4/Upper Caves | Entered another Upper Caves area 25178 | -4/Upper Caves | Encountered a Warlord checkpoint 25178 | -4/Upper Caves | Learned Research stockpile data 25193 | -4/Upper Caves | Build established: Botlord-Scout 25416 | -4/Upper Caves | Discovered exit to Warlord (range 5) 25473 | -4/Upper Caves | Entered Warlord 25473 | -4/Warlord | Accompanied by 2 allies 25483 | -4/Warlord | Discovered new exit (range 12) 25486 | -4/Warlord | Identified exit to Proximity Caves 25611 | -4/Warlord | Build established: Bothacker-Scout 26773 | -4/Warlord | Warlord's base attacked by MAIN.C 26908 | -4/Warlord | Opened side exit 26931 | -4/Warlord | RIF detected upon attempting to enter Warlord's base 26931 | -4/Warlord | Attacked by Warlord forces 26953 | -4/Warlord | Entered Proximity Caves 26957 | -3/Proximity Caves | Destroyed 8 combat bots 27245 | -3/Proximity Caves | Received a Behemoth hack from an annoying Tinkerer 27305 | -3/Proximity Caves | Discovered exit to Research (range 5) 27337 | -3/Proximity Caves | Entered Research 27337 | -3/Research | Evolved 2 slots: Utility x2 27338 | -3/Research | Identified exit to Testing 27643 | -3/Research | Found Prototype Protection 27643 | -3/Research | Identified Centrium Heavy Armor Plating 27722 | -3/Research | Build established: Bothacker-Sprinter 27809 | -3/Research | Identified exit to Garrison 27809 | -3/Research | Entered Garrison 27837 | -3/Garrison | Triggered checkpoint 27873 | -3/Garrison | Destroyed 10 combat bots 27964 | -3/Garrison | Triggered checkpoint 27987 | -3/Garrison | Spotted B-86 Titan 28023 | -3/Garrison | Destroyed B-86 Titan 28048 | -3/Garrison | Discovered new exit (range 10) 28132 | -3/Garrison | Triggered checkpoint 28142 | -3/Garrison | Identified exit to Research 28142 | -3/Garrison | Entered Research 28382 | -3/Research | Fabricated Smartbomb Launcher (x1) 28404 | -3/Research | Build established: Hacker-Sprinter 28454 | -3/Research | Identified exit to Garrison 28454 | -3/Research | Entered Garrison 28528 | -3/Garrison | Garrison Relay disabled 28552 | -3/Garrison | Spotted Executioner 28557 | -3/Garrison | Spotted Executioner 28563 | -3/Garrison | Destroyed Executioner 28574 | -3/Garrison | Triggered checkpoint 28579 | -3/Garrison | Spotted B-86 Titan 28588 | -3/Garrison | Discovered new exit (range 10) 28594 | -3/Garrison | Identified exit to Research 28595 | -3/Garrison | Entered Research 28595 | -2/Research | Evolved 2 slots: Utility x2 28597 | -2/Research | Destroyed 7 combat bots 28612 | -2/Research | Lost 3 parts (2p1w) 28799 | -2/Research | Identified exit to Access 28808 | -2/Research | Identified exit to Garrison 28808 | -2/Research | Entered Garrison 28808 | -2/Garrison | Discovered recently destroyed garrison 28821 | -2/Garrison | Garrison Relay disabled 28886 | -2/Garrison | Garrison Relay disabled 28900 | -2/Garrison | Discovered exit to Access (range 10) 28968 | -2/Garrison | Garrison Relay disabled 28988 | -2/Garrison | Discovered exit to Access (range 9) 28989 | -2/Garrison | Found embedded Infiltrators 29020 | -2/Garrison | Discovered exit to Access (range 15) 29055 | -2/Garrison | Expanded RIF knowledge: Crosswire 29108 | -2/Garrison | Garrison Relay disabled 29123 | -2/Garrison | Garrison Relay disabled 29205 | -2/Garrison | Build established: Botlord-Mutant 29211 | -2/Garrison | Murdered 4 allies 29235 | -2/Garrison | Found Relay Coupler [Proto] 29239 | -2/Garrison | Found Relay Coupler [Proto] 29242 | -2/Garrison | Found Relay Coupler [Proto] 29347 | -2/Garrison | Entered Access 29347 | -1/Access | Accompanied by 6 allies 29347 | -1/Access | Evolved 2 slots: Utility x2 29408 | -1/Access | Identified exit to Surface 29421 | -1/Access | Identified exit to Command 29468 | -1/Access | Garrison activated, responded to threat 29475 | -1/Access | P-80 Master assimilated allied 0N-TY0(x) 29847 | -1/Access | First assault squad dispatched 29850 | -1/Access | Lost 3 allies 29852 | -1/Access | Entered Command 29989 | -1/Command | Spotted Combat Programmer 30027 | -1/Command | Spotted M Guard 30027 | -1/Command | Spotted Combat Programmer 30027 | -1/Command | Spotted M Guard 30042 | -1/Command | Met MAIN.C 30050 | -1/Command | 0b10 Conduit disabled 30062 | -1/Command | System corruption reached 10% 30069 | -1/Command | Assimilated M Guard with formatsys_high 30071 | -1/Command | Assimilated M Guard with formatsys_high 30072 | -1/Command | Core integrity fell below 50% 30116 | -1/Command | Core integrity fell below 20% 30119 | -1/Command | Destroyed by G-73 Enforcer with Heavy Laser Last Messages --------------- 30101_ Imp. Remote Datajack+ destroyed. 30102_ Penetrated by EMDS Slug. 30106_ EMDS Slug penetrates Wall. 30111_ G-73 Enforcer springs to life. 30111_ Slammed into G-73 Enforcer. 30111_ G-73 Enforcer springs to life. 30112_ System corrupted: Imp. Q-thruster rejected. 30112_ G-73 Enforcer springs to life. 30112_ Slammed into G-73 Enforcer. 30112_ Adv. Hacking Suite destroyed. 30112_ Critical hit (Burn: +37). 30113_ Penetrated by EMDS Slug. 30114_ Critical hit (Burn: +37). 30115_ Relay Coupler [NC] destroyed. 30115_ Penetrated by EMDS Slug. 30115_ G-73 Enforcer misfires. 30116_ G-73 Enforcer system terminally corrupted. 30117_ Penetrated by EMDS Slug. Map ----- +----------------------------------------------------+ | ?????????????????????????????????????????????????? | | ?????????????????????????????????????????????????? | | ????????????????????????????????????????????? ??? | | ????????????????????????????????????????????? ??? | | ????????????????????????????????????????????? ??? | | ????????????????????????????????????????????# ??? | | ????????????????????????????????????????????# ??? | | ????????????????????????????????????????????# ??? | | ????????????????????????????????????????????# ??? | | ????????????????????????????????????????????# #?? | | ?????????????????????????##?????????????????# #?? | | ????????????????????????? ?????????????????# ### | | ????????????????????????? ?????????????????# # | | ????????????????????????? #????????????????# # | | ????????????????????????? #????????????????# # | | ????????????????????????? #????????????????# # | | ????????????????????????? #????????????????# # | | ???????????????????????## ##???????????????# + | | ???????????????????????# gg#g?g????????????# # | | ???????????????????????# ggg#g?gg???????????# # | | ?????????????????????p?# ggg???g????????????# # | | ????????????????????pp?# ggg?gggg???????????#g # | | ???????????????????pp???ggg??gggg???????????# g# | | ???????????????????pp???=gg??ggg??????????###g # | | ?????????????????????p??#g#???g???????????#"#g ### | | ?????????????????????p??#@#????????????????# g # | | ????????????????????#p??#p#????????????????# T" # | | ???????????????# ####p###p#### #???????????# "" + | | ???????????????# pppp ggg #???????????# # | | ????????????????#######";+######??????????#"##### | | ??????????????????????# #???????????????##????# | | ??????????????????????# #?????????????????????# | | ??????????????????????# #?????????????????????# | | ??????????????????????# #?????????????????????# | | ??????????????????????# p #?????????????????????# | | ??????????????????????# #?????????????????????# | | ??????????????????????# #?????????????????????# | | ??????????????????????# #????????????????????#"# | | ??????????????????????# #????????????????????### | | ??????????????????????# #??????????????????????? | | ??????????????????????# #??????????????????????? | | ??????????????????????# p#??????????????????????? | | ??????????????????????# #??????????????????????? | | ??????????????????????# #??????????????????????? | | ####################??# #??????????????????????? | | #??# #??????????????????????? | | *% #??# #?##???????????????????? | | !%! ! #### ## ####??#?????????????? | | ################ ## # # # #?????????????? | | ???????????????# ## # #?????????????? | +----------------------------------------------------+ Best States ------------- Heat Dissipation 53 Energy Generation 28 Energy Capacity 290 Matter Stores 300 Matter Capacity 300 Sight Range 16 Robot Scan Range 20 Terrain Scan Density 10 Armor Coverage 600 Resistance: EM 15 Propulsion Shielding 66 Weapon Shielding 33 Phase Shifting 5 Evasion (%) 76 Targeting Accuracy 6 Melee Accuracy 12 Recoil Reduction 4 Offensive Hacking 60 Defensive Hacking 20 Relay Coupler Types 8 Relay Coupler Value 181 Authchip Count 1 Trap Extractor Capacity 8 Item Schematics ----------------- Med. Storage Unit | -10/Materials | Hacked Imp. Propulsion Shielding | -8/Materials | Scanalyzed Imp. VTOL Module | -8/Materials | Scanalyzed Smartbomb Launcher | -5/Factory | Scanalyzed Robot Schematics ------------------ None Fabricated ------------ Imp. Propulsion Shielding | x2 | -4/Factory | Authchip Smartbomb Launcher | x1 | -3/Research | Authchip Repaired ---------- Particle Gun | 32% | -10/Materials Lgt. Assault Rifle | 35% | -10/Materials Lgt. Treads | 50% | -10/Materials Rocket Launcher | 55% | -8/Materials Hrd. Light Armor Plating | 27% | -8/Materials Imp. Propulsion Shielding | 62% | -7/Factory Studied --------- Lgt. Treads | -8/Materials | Hacked Imp. Grenade Launcher | -8/Materials | Hacked Arm. Treads | -8/Materials | Hacked Imp. Remote Datajack | -5/Factory | Hacked VTOL Module | -5/Factory | Hacked Mic. Fission Core | -5/Factory | Hacked Nuclear Pulse Thruster | -5/Factory | Hacked Alien Tech Used ----------------- Core Expander Achievements -------------- Powerful Protocols Challenges ------------ None Game ------ Seed EncryptedCompanionLattice Manual? 0 Play Time 05:42:52 Cumulative 329.6 hours Start 2026.01.16 @ 17:00:47 End 2026.01.17 @ 13:19:13 Sessions 3 Manual Loads 0 Difficulty Rogue Special Mode None Game No. 91 Rogue 85 Adventurer 0 Explorer 6 Win Type - Total 19 Types 9/1/3/1/1/0/2/1/0/1 Lore% 87 Gallery% 78 Achievement% 69 Wizard Run 0 Options --------- Layout 1 ASCII 0 Keyboard 0 Movement Mouse Keybinds 0 Fullscreen 2 Font 24/Smallcaps Map View 50x35 Zoom Use 0% Tactical HUD 1 Map Filters NONE Filters NONE Steam 1 RUN: 932f6f71-44fb-4b5e-82d0-501a0f479122